Workbook

Sheet SAPBEXqueriesDefunct (hidden)
A1: 9
A2: 8 | AE2: 72 | CM2: 300 | DG2: 208 | EA2: 1512 | EU2: 0 | FY2: 33 | HW2: 248
A3: 24 | AE3: 59 | CM3: 13 | DG3: 14 | EA3: 13 | EU3: 11 | FY3: 21 | HW3: 2
B4: 441 | C4: DA5GMC5Q7C0P8X8EGK6XEOEM1 | D4: TRUE | E4: TRUE | F4: SAPBEXq0011 | G4: 2 | H4: 2 | I4: FALSE | L4: TRUE | M4: FALSE | O4: TRUE | P4: FALSE | Q4: 0 | S4: 5 | T4: TRUE | U4: TRUE | X4: FALSE | Y4: FALSE | Z4: FALSE | AE4: 11 | AF4: 0PAYRL_AREA | AG4: Payroll Area | AH4: X | AK4: 0001 | AS4: 0 | AT4: 03 | AX4: 00000000 | AY4: K | AZ4: 0PAYRL_AREA | BA4: A | BD4: H | BJ4: 00000000 | BK4: 0000 | BM4: 0 | BR4: 1 | BS4: 1 | BT4: 1 | BU4: 0 | BV4: 0 | CB4: DA5N022H38J9WS4RRDINF30U1 | CI4: 0000 | CM4: 11 | CN4: D4O2P4A3SH8H6WZIVSYIIRP4P | CO4: D4O2P4A3SHBJXEAK5YOYSHA7T | CP4: Teacher F/T | CQ4: 0001 | CS4: S | CU4: L | DG4: 11 | DH4: 0ORGUNIT | DI4: 0BBPPURGRPX | DJ4: Ind.Purchasing Group | DK4: 0000 | DL4: X | DM4: 2 | DN4: 0 | DO4: 0 | DT4: 0000 | EA4: 11 | EB4: D4O2P4A3SHBJXEAK5YOYSHA7T | EC4: DA5GNUVDNUSS0I3R190AYAR5L | EI4: 00 | EJ4: X | EK4: 0 | EL4: 0 | FY4: 11 | FZ4: ZS_DT_1 | GA4: 1 | GB4: P | GC4: I | GD4: EQ | GE4: 20150930 | GF4: 30/09/2015 | GJ4: 0 | GL4: 0 | GN4: 0 | GO4: Target date 1 | GP4: 60 | GS4: ZEMP_STRT | GT4: 20150930 | HW4: 11 | HX4: 0000000107 | HY4: DA5N022H38D4FTIP721QVNUNT
B5: 437 | C5: DA5GMC5Q7C0P8X8EGK6XEOEM1 | D5: TRUE | E5: TRUE | F5: SAPBEXq0012 | G5: 2 | H5: 2 | I5: FALSE | L5: TRUE | M5: FALSE | O5: TRUE | P5: FALSE | Q5: 0 | S5: 5 | T5: TRUE | U5: TRUE | X5: FALSE | Y5: FALSE | Z5: FALSE | AE5: 11 | AF5: ZPERSAREA | AG5: ZPersonal Area | AH5: X | AK5: 0002 | AS5: 2 | AT5: 03 | AX5: 00000000 | AY5: K | AZ5: ZPERSAREA | BA5: A | BD5: H | BJ5: 00000000 | BK5: 0000 | BM5: 0 | BR5: 1 | BS5: 1 | BT5: 1 | BU5: 0 | BV5: 0 | CB5: DA5N022H38K1LEGJ2WY9HIF3T | CI5: 0000 | CM5: 11 | CN5: DA5GNUVDNUS0BVRZPPKOVVCVT | CO5: DA5GNUVDNUSS0I3R190AYAR5L | CP5: Bi-Sexual | CQ5: 0001 | CS5: S | CU5: L | CV5: X | DG5: 11 | DH5: 0ORGUNIT | DI5: 0BBPPURORGX | DJ5: Ind. Purchasing Org. | DK5: 0000 | DL5: X | DM5: 2 | DN5: 0 | DO5: 0 | DT5: 0000 | EA5: 11 | EB5: D4O2P4A3SHBJXEAK5YOYSHA7T | EC5: DA5GNUVDNUTJP4FICSFX0Q5FD | EI5: 00 | EJ5: X | EK5: 0 | EL5: 0 | FY5: 11 | FZ5: ZS_PSAR2 | GA5: 1 | GB5: P | GJ5: 0 | GL5: 0 | GN5: 0 | GO5: Pers. Sub-Area - optional | GP5: 60 | GS5: 0PERS_SAREA | HW5: 11 | HX5: 0000000100 | HY5: X
B6: 433 | C6: DA5GMC5Q7C0P8X8EGK6XEOEM1 | D6: TRUE | E6: TRUE | F6: SAPBEXq0013 | G6: 2 | H6: 2 | I6: FALSE | L6: TRUE | M6: FALSE | O6: TRUE | P6: FALSE | Q6: 0 | S6: 5 | T6: TRUE | U6: TRUE | X6: FALSE | Y6: FALSE | Z6: FALSE | AE6: 11 | AF6: 0ORGUNIT | AG6: Organizational Unit | AH6: X | AK6: 0003 | AS6: 1 | AT6: 03 | AU6: X | AV6: ORGEH | AW6: 000 | AX6: 20150930 | AY6: K | AZ6: 0ORGUNIT | BA6: A | BD6: H | BE6: 0ORGUNIT | BF6: A | BJ6: 00000000 | BK6: 0000 | BM6: 0 | BQ6: 2 | BR6: 1 | BS6: 1 | BT6: 1 | BU6: 0 | BV6: 0 | CB6: DA5N022H38KTA0SAEGDVJXTDL | CI6: 0000 | CM6: 11 | CN6: DA5GNUVDNUS0BVRZPPKOVVCVT | CO6: DA5GNUVDNUTJP4FICSFX0Q5FD | CP6: Heterosexual | CQ6: 0002 | CS6: S | CU6: L | CV6: X | DG6: 11 | DH6: 0ORGUNIT | DI6: 0BBP_BUYID | DJ6: Buyer ID | DK6: 0000 | DL6: X | DM6: 5 | DN6: 0 | DO6: 0 | DT6: 0000 | EA6: 11 | EB6: D4O2P4A3SHBJXEAK5YOYSHA7T | EC6: DA5GNUVDNUUBDQR9OBVJ35JP5 | EI6: 00 | EJ6: X | EK6: 0 | EL6: 0 | FY6: 11 | FZ6: ZP_ORGUN | GA6: 2 | GB6: M | GJ6: 0 | GL6: 0 | GN6: 0 | GO6: Org Unit Hierarchy (Selection option, optional) | GP6: 60 | GS6: 0ORGUNIT | HW6: 11 | HX6: 0000000101
B7: 429 | C7: DA5GMC5Q7C0P8X8EGK6XEOEM1 | D7: TRUE | E7: TRUE | F7: SAPBEXq0014 | G7: 2 | H7: 2 | I7: FALSE | L7: TRUE | M7: FALSE | O7: TRUE | P7: FALSE | Q7: 0 | S7: 5 | T7: TRUE | U7: TRUE | X7: FALSE | Y7: FALSE | Z7: FALSE | AE7: 11 | AF7: 0PERS_SAREA | AG7: Personnel Subarea | AH7: X | AK7: 0004 | AR7: U | AS7: 1 | AT7: 03 | AX7: 00000000 | AY7: K | AZ7: 0PERS_SAREA | BA7: A | BD7: H | BJ7: 00000000 | BK7: 0000 | BM7: 0 | BR7: 1 | BS7: 1 | BT7: 1 | BU7: 0 | BV7: 0 | CB7: DA5N022H38LKYN41PZTHMD7ND | CI7: 0000 | CM7: 11 | CN7: D4O2P4A3SH8H6WZIVSYIIRP4P | CO7: DEN9FTLAHPZM13J0WXXO1VFND | CP7: Teacher P/T | CQ7: 0002 | CS7: S | CU7: L | DG7: 11 | DH7: 0ORGUNIT | DI7: 0BBP_ISCOMP | DJ7: Organizational Unit is Company | DK7: 0000 | DL7: X | DM7: 1 | DN7: 0 | DO7: 0 | DT7: 0000 | EA7: 11 | EB7: D4O2P4A3SHBJXEAK5YOYSHA7T | EC7: DA5GNUVDNUV32D30ZVB55KXYX | EI7: 00 | EJ7: X | EK7: 0 | EL7: 0 | FY7: 11 | FZ7: ZBUDH | GA7: 1 | GB7: P | GC7: I | GD7: EQ | GE7: 20150930 | GF7: 30/09/2015 | GJ7: 0 | GL7: 0 | GN7: 0 | GO7: Master Data Key Date | GP7: 60 | GS7: 0DATE | GT7: 20150930 | HW7: 11 | HX7: 0000000104 | HY7: 1
B8: 425 | C8: DA5GMC5Q7C0P8X8EGK6XEOEM1 | D8: TRUE | E8: TRUE | F8: SAPBEXq0015 | G8: 2 | H8: 2 | I8: FALSE | L8: TRUE | M8: FALSE | O8: TRUE | P8: FALSE | Q8: 0 | S8: 5 | T8: TRUE | U8: TRUE | X8: FALSE | Y8: FALSE | Z8: FALSE | AE8: 11 | AF8: ZTEILK | AG8: Checkbox for Part-Ti | AH8: X | AK8: 0005 | AS8: 1 | AT8: 03 | AX8: 00000000 | AY8: K | AZ8: ZTEILK | BA8: A | BD8: H | BJ8: 00000000 | BK8: 0000 | BM8: 0 | BR8: 1 | BS8: 1 | BT8: 1 | BU8: 0 | BV8: 0 | CB8: DA5N022H38MCN9FT1J93OSLX5 | CI8: 0000 | CM8: 11 | CN8: DA5GNUVDNUS0BVRZPPKOVVCVT | CO8: DA5GNUVDNUUBDQR9OBVJ35JP5 | CP8: Lesbian/Gay | CQ8: 0003 | CS8: S | CU8: L | CV8: X | DG8: 11 | DH8: 0ORGUNIT | DI8: 0BUS_AREA | DJ8: Business area | DK8: 0000 | DL8: X | DM8: 0 | DN8: 0 | DO8: 0 | DT8: 0000 | EA8: 11 | EB8: D4O2P4A3SHBJXEAK5YOYSHA7T | EC8: DA5GNUVDNUVUQZESBEQR80C8P | EI8: 00 | EJ8: X | EK8: 0 | EL8: 0 | FY8: 11 | FZ8: ZZPERAR | GA8: 1 | GB8: M | GJ8: 0 | GL8: 0 | GN8: 0 | GO8: ZPersonnel Area | GP8: 60 | GS8: ZPERSAREA | HW8: 11 | HX8: 0000000103
B9: 421 | C9: DA5GMC5Q7C0P8X8EGK6XEOEM1 | D9: TRUE | E9: TRUE | F9: SAPBEXq0016 | G9: 2 | H9: 2 | I9: FALSE | L9: TRUE | M9: FALSE | O9: TRUE | P9: FALSE | Q9: 0 | S9: 5 | T9: TRUE | U9: TRUE | X9: FALSE | Y9: FALSE | Z9: FALSE | AE9: 11 | AF9: ZPRIM_ID | AG9: ZPrimary Employee ID | AH9: X | AK9: 0006 | AS9: 2 | AT9: 03 | AX9: 00000000 | AY9: K | AZ9: ZPRIM_ID | BA9: A | BD9: H | BJ9: 00000000 | BK9: 0000 | BM9: 0 | BR9: 1 | BS9: 1 | BT9: 1 | BU9: 0 | BV9: 0 | CB9: DA5N022H38N4BVRKD2OPR806X | CI9: 0000 | CM9: 11 | CN9: D4O2P4A3SH8H6WZIVSYIIRP4P | CO9: DEN9GQ7MCHA8Y0DFMMJUL514P | CP9: Teacher Total | CQ9: 0003 | CS9: S | CU9: L | DG9: 11 | DH9: 0ORGUNIT | DI9: 0COMP_CODE | DJ9: Company code | DK9: 0000 | DL9: X | DM9: 0 | DN9: 0 | DO9: 0 | DT9: 0000 | EA9: 11 | EB9: D4O2P4A3SHBJXEAK5YOYSHA7T | EC9: DA5GNUVDNUWMFLQJMY6DAFQIH | EI9: 00 | EJ9: X | EK9: 0 | EL9: 0 | FY9: 10 | FZ9: ZS_DT_1 | GA9: 1 | GB9: P | GC9: I | GD9: EQ | GE9: 20150930 | GF9: 30/09/2015 | GJ9: 0 | GL9: 0 | GN9: 0 | GO9: Target date 1 | GP9: 60 | GS9: ZEMP_STRT | GT9: 20150930 | HW9: 11 | HX9: 0000000102 | HY9: 1
B10: 417 | C10: DA5GMC5Q7C0P8X8EGK6XEOEM1 | D10: TRUE | E10: TRUE | F10: SAPBEXq0017 | G10: 2 | H10: 2 | I10: FALSE | L10: TRUE | M10: FALSE | O10: TRUE | P10: FALSE | Q10: 0 | S10: 5 | T10: TRUE | U10: TRUE | X10: FALSE | Y10: FALSE | Z10: FALSE | AE10: 11 | AF10: 0CNTRCTTYPE | AG10: Contract Type | AH10: X | AK10: 0007 | AS10: 1 | AT10: 03 | AX10: 00000000 | AY10: K | AZ10: 0CNTRCTTYPE | BA10: A | BD10: H | BJ10: 00000000 | BK10: 0000 | BM10: 0 | BR10: 1 | BS10: 1 | BT10: 1 | BU10: 0 | BV10: 0 | CB10: DB0ZMJSGTZKZAIQ84S6SUKE0P | CI10: 0000 | CM10: 11 | CN10: D4O2P4A3SH8H6WZIVSYIIRP4P | CO10: D4O2P4A3SHEMNVLLG4FF26VAX | CP10: Principal Teacher F/T | CQ10: 0004 | CS10: S | CU10: L | DG10: 11 | DH10: 0ORGUNIT | DI10: 0CO_MST_AR | DJ10: Controlling Area of Master Cost Center | DK10: 0000 | DL10: X | DM10: 0 | DN10: 0 | DO10: 0 | DT10: 0000 | EA10: 11 | EB10: D4O2P4A3SHEMNVLLG4FF26VAX | EC10: DA5GNUVDNUSS0I3R190AYAR5L | EI10: 00 | EJ10: X | EK10: 0 | EL10: 0 | FY10: 10 | FZ10: ZP_ORGUN | GA10: 2 | GB10: M | GJ10: 0 | GL10: 0 | GN10: 0 | GO10: Org Unit Hierarchy (Selection option, optional) | GP10: 60 | GS10: 0ORGUNIT | HW10: 11 | HX10: 0000000108
B11: 413 | C11: DA5N022H38ONP4F305JXW2SQH | D11: TRUE | E11: TRUE | F11: SAPBEXq0019 | G11: 2 | H11: 2 | I11: FALSE | L11: TRUE | M11: FALSE | O11: TRUE | P11: FALSE | Q11: 0 | S11: 5 | T11: TRUE | U11: TRUE | X11: FALSE | Y11: FALSE | Z11: FALSE | AE11: 11 | AF11: DA5GNUVDNUS0BVRZPPKOVVCVT | AG11: Sexual Orientation - Rev 2011 | AI11: X | AJ11: X | AK11: 0001 | AR11: U | AT11: 00 | AY11: K | AZ11: DA5GNUVDNUS0BVRZPPKOVVCVT | BA11: A | BJ11: 00000000 | BK11: 0000 | BL11: X | BM11: 0 | BR11: 0 | BS11: 0 | BT11: 0 | BU11: 0 | BV11: 0 | CB11: DA5GNUVDNUS0BVRZPPKOVVCVT | CI11: 0000 | CM11: 11 | CN11: DA5GNUVDNUS0BVRZPPKOVVCVT | CO11: DA5GNUVDNUV32D30ZVB55KXYX | CP11: Transgender | CQ11: 0004 | CS11: S | CU11: L | CV11: X | DG11: 11 | DH11: 0ORGUNIT | DI11: 0CRMSALGRPX | DJ11: Sls Group: Indicator | DK11: 0000 | DL11: X | DM11: 2 | DN11: 0 | DO11: 0 | DT11: 0000 | EA11: 11 | EB11: D4O2P4A3SHEMNVLLG4FF26VAX | EC11: DA5GNUVDNUTJP4FICSFX0Q5FD | EI11: 00 | EJ11: X | EK11: 0 | EL11: 0 | FY11: 10 | FZ11: ZBUDH | GA11: 1 | GB11: P | GC11: I | GD11: EQ | GE11: 20150930 | GF11: 30/09/2015 | GJ11: 0 | GL11: 0 | GN11: 0 | GO11: Master Data Key Date | GP11: 60 | GS11: 0DATE | GT11: 20150930 | HW11: 11 | HX11: 0000009002 | HY11: D4O2P4A3SH8H6WZIVSYIIRP4P
Z12: FALSE | AE12: 11 | AF12: D4O2P4A3SH8H6WZIVSYIIRP4P | AG12: WP Teachers Bandings | AI12: X | AJ12: Y | AK12: 0001 | AR12: U | AT12: 00 | AY12: K | AZ12: D4O2P4A3SH8H6WZIVSYIIRP4P | BA12: A | BJ12: 00000000 | BK12: 0000 | BM12: 0 | BR12: 0 | BS12: 0 | BT12: 0 | BU12: 0 | BV12: 0 | CB12: D4O2P4A3SH8H6WZIVSYIIRP4P | CI12: 0000 | CM12: 11 | CN12: D4O2P4A3SH8H6WZIVSYIIRP4P | CO12: DEN9FTLAHQ0DPPUS8HDA4ATX5 | CP12: Principal Teacher P/T | CQ12: 0005 | CS12: S | CU12: L | DG12: 11 | DH12: 0ORGUNIT | DI12: 0CRMSALOFFX | DJ12: Sls Office:Indicator | DK12: 0000 | DL12: X | DM12: 2 | DN12: 0 | DO12: 0 | DT12: 0000 | EA12: 11 | EB12: D4O2P4A3SHEMNVLLG4FF26VAX | EC12: DA5GNUVDNUUBDQR9OBVJ35JP5 | EI12: 00 | EJ12: X | EK12: 0 | EL12: 0 | FY12: 10 | FZ12: ZZPERAR | GA12: 1 | GB12: M | GJ12: 0 | GL12: 0 | GN12: 0 | GO12: ZPersonnel Area | GP12: 60 | GS12: ZPERSAREA | HW12: 11 | HX12: 0000009000
Z13: FALSE | AE13: 10 | AF13: 0PAYRL_AREA | AG13: Payroll Area | AH13: X | AK13: 0001 | AS13: 0 | AT13: 03 | AX13: 00000000 | AY13: K | AZ13: 0PAYRL_AREA | BA13: A | BD13: H | BJ13: 00000000 | BK13: 0000 | BM13: 0 | BR13: 1 | BS13: 1 | BT13: 1 | BU13: 0 | BV13: 0 | CB13: DA5GMC5Q7BVBGKY37S5MXOMPL | CI13: 0000 | CM13: 11 | CN13: DA5GNUVDNUS0BVRZPPKOVVCVT | CO13: DA5GNUVDNUVUQZESBEQR80C8P | CP13: Other | CQ13: 0005 | CS13: S | CU13: L | CV13: X | DG13: 11 | DH13: 0ORGUNIT | DI13: 0CRMSALORGX | DJ13: Sales Org. Indicator | DK13: 0000 | DL13: X | DM13: 2 | DN13: 0 | DO13: 0 | DT13: 0000 | EA13: 11 | EB13: D4O2P4A3SHEMNVLLG4FF26VAX | EC13: DA5GNUVDNUV32D30ZVB55KXYX | EI13: 00 | EJ13: X | EK13: 0 | EL13: 0 | FY13: 9 | FZ13: ZS_DT_1 | GA13: 1 | GB13: P | GC13: I | GD13: EQ | GE13: 20150930 | GF13: 30/09/2015 | GJ13: 0 | GL13: 0 | GN13: 0 | GO13: Target date 1 | GP13: 60 | GS13: ZEMP_STRT | GT13: 20150930 | HW13: 11 | HX13: 0000000010
Z14: FALSE | AE14: 10 | AF14: ZPERSAREA | AG14: ZPersonal Area | AH14: X | AK14: 0002 | AM14: Education | AS14: 2 | AT14: 03 | AX14: 00000000 | AY14: K | AZ14: ZPERSAREA | BA14: A | BD14: H | BJ14: 00000000 | BK14: 0000 | BM14: 0 | BO14: 1 | BR14: 1 | BS14: 1 | BT14: 1 | BU14: 0 | BV14: 0 | CB14: DA5GMC5Q7BW3579UJBL9040ZD | CI14: 0000 | CM14: 11 | CN14: D4O2P4A3SH8H6WZIVSYIIRP4P | CO14: DEN9GQ7MCHB0MMP6Y5ZGNKFEH | CP14: Principal Teacher Total | CQ14: 0006 | CS14: S | CU14: L | DG14: 11 | DH14: 0ORGUNIT | DI14: 0CRMSRVTGRP | DJ14: Ex. CRM Service Org. | DK14: 0000 | DL14: X | DM14: 1 | DN14: 0 | DO14: 0 | DT14: 0000 | EA14: 11 | EB14: D4O2P4A3SHEMNVLLG4FF26VAX | EC14: DA5GNUVDNUVUQZESBEQR80C8P | EI14: 00 | EJ14: X | EK14: 0 | EL14: 0 | FY14: 9 | FZ14: ZP_ORGUN | GA14: 2 | GB14: M | GJ14: 0 | GL14: 0 | GN14: 0 | GO14: Org Unit Hierarchy (Selection option, optional) | GP14: 60 | GS14: 0ORGUNIT | HW14: 11 | HX14: 0000000021
Z15: FALSE | AE15: 10 | AF15: 0ORGUNIT | AG15: Organizational Unit | AH15: X | AK15: 0003 | AS15: 1 | AT15: 03 | AU15: X | AV15: ORGEH | AW15: 000 | AX15: 20150930 | AY15: K | AZ15: 0ORGUNIT | BA15: A | BD15: H | BE15: 0ORGUNIT | BF15: A | BJ15: 00000000 | BK15: 0000 | BM15: 0 | BQ15: 2 | BR15: 1 | BS15: 1 | BT15: 1 | BU15: 0 | BV15: 0 | CB15: DA5GMC5Q7BWUTTLLUV0V2JF95 | CI15: 0000 | CM15: 11 | CN15: DA5GNUVDNUS0BVRZPPKOVVCVT | CO15: DA5GNUVDNUWMFLQJMY6DAFQIH | CP15: Not Disclosed | CQ15: 0006 | CS15: S | CU15: L | CV15: X | DG15: 11 | DH15: 0ORGUNIT | DI15: 0CRM_SALGRP | DJ15: CRM Sales Group | DK15: 0000 | DL15: X | DM15: 1 | DN15: 0 | DO15: 0 | DT15: 0000 | EA15: 11 | EB15: D4O2P4A3SHEMNVLLG4FF26VAX | EC15: DA5GNUVDNUWMFLQJMY6DAFQIH | EI15: 00 | EJ15: X | EK15: 0 | EL15: 0 | FY15: 9 | FZ15: ZBUDH | GA15: 1 | GB15: P | GC15: I | GD15: EQ | GE15: 20150930 | GF15: 30/09/2015 | GJ15: 0 | GL15: 0 | GN15: 0 | GO15: Master Data Key Date | GP15: 60 | GS15: 0DATE | GT15: 20150930 | HW15: 11 | HX15: 0000000022
Z16: FALSE | AE16: 10 | AF16: 0PERS_SAREA | AG16: Personnel Subarea | AH16: X | AK16: 0004 | AR16: U | AS16: 1 | AT16: 03 | AX16: 00000000 | AY16: K | AZ16: 0PERS_SAREA | BA16: A | BD16: H | BJ16: 00000000 | BK16: 0000 | BM16: 0 | BR16: 1 | BS16: 1 | BT16: 1 | BU16: 0 | BV16: 0 | CB16: DA5GMC5Q7BXMIFXD6EGH4YTIX | CI16: 0000 | CM16: 11 | CN16: D4O2P4A3SH8H6WZIVSYIIRP4P | CO16: D4O2P4A3SHHPECWMQA5VBWGE1 | CP16: AHT/DHT F/T | CQ16: 0007 | CS16: S | CU16: L | DG16: 11 | DH16: 0ORGUNIT | DI16: 0CRM_SALOFF | DJ16: CRM Sales Office | DK16: 0000 | DL16: X | DM16: 1 | DN16: 0 | DO16: 0 | DT16: 0000 | EA16: 11 | EB16: D4O2P4A3SHHPECWMQA5VBWGE1 | EC16: DA5GNUVDNUSS0I3R190AYAR5L | EI16: 00 | EJ16: X | EK16: 0 | EL16: 0 | FY16: 9 | FZ16: ZZPERAR | GA16: 1 | GB16: M | GJ16: 0 | GL16: 0 | GN16: 0 | GO16: ZPersonnel Area | GP16: 60 | GS16: ZPERSAREA | HW16: 11 | HX16: 0000000023
Z17: FALSE | AE17: 10 | AF17: ZTEILK | AG17: Checkbox for Part-Ti | AH17: X | AK17: 0005 | AS17: 1 | AT17: 03 | AX17: 00000000 | AY17: K | AZ17: ZTEILK | BA17: A | BD17: H | BJ17: 00000000 | BK17: 0000 | BM17: 0 | BR17: 1 | BS17: 1 | BT17: 1 | BU17: 0 | BV17: 0 | CB17: DA5GMC5Q7BYE7294HXW37E7SP | CI17: 0000 | CM17: 11 | CN17: D4O2P4A3SH8H6WZIVSYIIRP4P | CO17: DEN9FTLAHQ15EC6JK0SW6Q86X | CP17: AHT/DHT P/T | CQ17: 0008 | CS17: S | CU17: L | DG17: 11 | DH17: 0ORGUNIT | DI17: 0CRM_SALORG | DJ17: CRM Sales Org. | DK17: 0000 | DL17: X | DM17: 1 | DN17: 0 | DO17: 0 | DT17: 0000 | EA17: 11 | EB17: D4O2P4A3SHHPECWMQA5VBWGE1 | EC17: DA5GNUVDNUTJP4FICSFX0Q5FD | EI17: 00 | EJ17: X | EK17: 0 | EL17: 0 | FY17: 8 | FZ17: ZS_DT_1 | GA17: 1 | GB17: P | GC17: I | GD17: EQ | GE17: 20150930 | GF17: 30/09/2015 | GJ17: 0 | GL17: 0 | GN17: 0 | GO17: Target date 1 | GP17: 60 | GS17: ZEMP_STRT | GT17: 20150930 | HW17: 11 | HX17: 0000000030
Z18: FALSE | AE18: 10 | AF18: ZPRIM_ID | AG18: ZPrimary Employee ID | AH18: X | AK18: 0006 | AS18: 2 | AT18: 03 | AX18: 00000000 | AY18: K | AZ18: ZPRIM_ID | BA18: A | BD18: H | BJ18: 00000000 | BK18: 0000 | BM18: 0 | BR18: 1 | BS18: 1 | BT18: 1 | BU18: 0 | BV18: 0 | CB18: DA5GMC5Q7BZ5VOKVTHBP9TM2H | CI18: 0000 | CM18: 11 | CN18: D4O2P4A3SH8H6WZIVSYIIRP4P | CO18: DEN9GQ7MCHBSB90Y9PF2PZTO9 | CP18: AHT/DHT Total | CQ18: 0009 | CS18: S | CU18: L | DG18: 11 | DH18: 0ORGUNIT | DI18: 0CRM_SRVORG | DJ18: Service Org. CRM | DK18: 0000 | DL18: X | DM18: 1 | DN18: 0 | DO18: 0 | DT18: 0000 | EA18: 11 | EB18: D4O2P4A3SHHPECWMQA5VBWGE1 | EC18: DA5GNUVDNUUBDQR9OBVJ35JP5 | EI18: 00 | EJ18: X | EK18: 0 | EL18: 0 | FY18: 8 | FZ18: ZP_ORGUN | GA18: 2 | GB18: M | GJ18: 0 | GL18: 0 | GN18: 0 | GO18: Org Unit Hierarchy (Selection option, optional) | GP18: 60 | GS18: 0ORGUNIT | HW18: 11 | HX18: 0000000040
Z19: FALSE | AE19: 10 | AF19: 0CNTRCTTYPE | AG19: Contract Type | AH19: X | AK19: 0007 | AS19: 1 | AT19: 03 | AX19: 00000000 | AY19: K | AZ19: 0CNTRCTTYPE | BA19: A | BD19: H | BJ19: 00000000 | BK19: 0000 | BM19: 0 | BR19: 1 | BS19: 1 | BT19: 1 | BU19: 0 | BV19: 0 | CB19: DB0ZLJBMLZ1X022DVK6MFOZQX | CI19: 0000 | CM19: 11 | CN19: D4O2P4A3SH8H6WZIVSYIIRP4P | CO19: D4O2P4A3SHKS4U7O0FWBLM1H5 | CP19: Head Teacher F/T | CQ19: 0010 | CS19: S | CU19: L | DG19: 11 | DH19: 0ORGUNIT | DI19: 0LOGSYS | DJ19: Source System | DK19: 0000 | DL19: X | DM19: 1 | DN19: 0 | DO19: 0 | DT19: 0000 | EA19: 11 | EB19: D4O2P4A3SHHPECWMQA5VBWGE1 | EC19: DA5GNUVDNUV32D30ZVB55KXYX | EI19: 00 | EJ19: X | EK19: 0 | EL19: 0 | FY19: 8 | FZ19: ZBUDH | GA19: 1 | GB19: P | GC19: I | GD19: EQ | GE19: 20150930 | GF19: 30/09/2015 | GJ19: 0 | GL19: 0 | GN19: 0 | GO19: Master Data Key Date | GP19: 60 | GS19: 0DATE | GT19: 20150930 | HW19: 11 | HX19: 0000000041
Z20: FALSE | AE20: 10 | AF20: DA5GNUVDNUS0BVRZPPKOVVCVT | AG20: Sexual Orientation - Rev 2011 | AI20: X | AJ20: X | AK20: 0001 | AR20: U | AT20: 00 | AY20: K | AZ20: DA5GNUVDNUS0BVRZPPKOVVCVT | BA20: A | BJ20: 00000000 | BK20: 0000 | BL20: X | BM20: 0 | BR20: 0 | BS20: 0 | BT20: 0 | BU20: 0 | BV20: 0 | CB20: DA5GNUVDNUS0BVRZPPKOVVCVT | CI20: 0000 | CM20: 11 | CN20: D4O2P4A3SH8H6WZIVSYIIRP4P | CO20: DEN9FTLAHQ1X2YIAVK8I95MGP | CP20: Head Teacher P/T | CQ20: 0011 | CS20: S | CU20: L | DG20: 11 | DH20: 0ORGUNIT | DI20: 0MAST_CCTR | DJ20: Master Cost Center | DK20: 0000 | DL20: X | DM20: 0 | DN20: 0 | DO20: 0 | DT20: 0000 | EA20: 11 | EB20: D4O2P4A3SHHPECWMQA5VBWGE1 | EC20: DA5GNUVDNUVUQZESBEQR80C8P | EI20: 00 | EJ20: X | EK20: 0 | EL20: 0 | FY20: 8 | FZ20: ZZPERAR | GA20: 1 | GB20: M | GJ20: 0 | GL20: 0 | GN20: 0 | GO20: ZPersonnel Area | GP20: 60 | GS20: ZPERSAREA | HW20: 11 | HX20: 0000000042 | HY20: 0
Z21: FALSE | AE21: 10 | AF21: D4O21W1IBUB3HEML1KWP5YGOP | AG21: WP Bandings | AI21: X | AJ21: Y | AK21: 0001 | AR21: U | AT21: 00 | AY21: K | AZ21: D4O21W1IBUB3HEML1KWP5YGOP | BA21: A | BJ21: 00000000 | BK21: 0000 | BM21: 0 | BR21: 0 | BS21: 0 | BT21: 0 | BU21: 0 | BV21: 0 | CB21: D4O21W1IBUB3HEML1KWP5YGOP | CI21: 0000 | CM21: 11 | CN21: D4O2P4A3SH8H6WZIVSYIIRP4P | CO21: DEN9GQ7MCHCJZVCPL8UOSF7Y1 | CP21: Head Teacher Total | CQ21: 0012 | CS21: S | CU21: L | DG21: 11 | DH21: 0ORGUNIT | DI21: 0PERS_AREA | DJ21: Personnel Area | DK21: 0000 | DL21: X | DM21: 1 | DN21: 0 | DO21: 0 | DT21: 0000 | EA21: 11 | EB21: D4O2P4A3SHHPECWMQA5VBWGE1 | EC21: DA5GNUVDNUWMFLQJMY6DAFQIH | EI21: 00 | EJ21: X | EK21: 0 | EL21: 0 | FY21: 7 | FZ21: ZS_DT_1 | GA21: 1 | GB21: P | GC21: I | GD21: EQ | GE21: 20150930 | GF21: 30/09/2015 | GJ21: 0 | GL21: 0 | GN21: 0 | GO21: Target date 1 | GP21: 60 | GS21: ZEMP_STRT | GT21: 20150930 | HW21: 11 | HX21: 0000000043 | HY21: 0
Z22: FALSE | AE22: 9 | AF22: 0PAYRL_AREA | AG22: Payroll Area | AH22: X | AK22: 0001 | AS22: 0 | AT22: 03 | AX22: 00000000 | AY22: K | AZ22: 0PAYRL_AREA | BA22: A | BD22: H | BJ22: 00000000 | BK22: 0000 | BM22: 0 | BR22: 1 | BS22: 1 | BT22: 1 | BU22: 0 | BV22: 0 | CB22: DA5GMC5Q7BVBGKY37S5MXOMPL | CI22: 0000 | CM22: 11 | CN22: D4O2P4A3SH8H6WZIVSYIIRP4P | CO22: D4O2P4A3SHNUVBIPALMRVBMK9 | CP22: Advisor F/T | CQ22: 0013 | CS22: S | CU22: L | DG22: 11 | DH22: 0ORGUNIT | DI22: 0PERS_SAREA | DJ22: Personnel Subarea | DK22: 0000 | DL22: X | DM22: 1 | DN22: 0 | DO22: 0 | DT22: 0000 | EA22: 11 | EB22: D4O2P4A3SHKS4U7O0FWBLM1H5 | EC22: DA5GNUVDNUSS0I3R190AYAR5L | EI22: 00 | EJ22: X | EK22: 0 | EL22: 0 | FY22: 7 | FZ22: ZP_ORGUN | GA22: 2 | GB22: M | GJ22: 0 | GL22: 0 | GN22: 0 | GO22: Org Unit Hierarchy (Selection option, optional) | GP22: 60 | GS22: 0ORGUNIT | HW22: 11 | HX22: 0000000109 | HY22: 0
AE23: 9 | AF23: ZPERSAREA | AG23: ZPersonal Area | AH23: X | AK23: 0002 | AS23: 2 | AT23: 03 | AX23: 00000000 | AY23: K | AZ23: ZPERSAREA | BA23: A | BD23: H | BJ23: 00000000 | BK23: 0000 | BM23: 0 | BR23: 1 | BS23: 1 | BT23: 1 | BU23: 0 | BV23: 0 | CB23: DA5GMC5Q7BW3579UJBL9040ZD | CI23: 0000 | CM23: 11 | CN23: D4O2P4A3SH8H6WZIVSYIIRP4P | CO23: DEN9FTLAHQ2ORKU273O4BL0QH | CP23: Advisor P/T | CQ23: 0014 | CS23: S | CU23: L | DG23: 11 | DH23: 0ORGUNIT | DI23: 0PLANT | DJ23: Plant | DK23: 0000 | DL23: X | DM23: 0 | DN23: 0 | DO23: 0 | DT23: 0000 | EA23: 11 | EB23: D4O2P4A3SHKS4U7O0FWBLM1H5 | EC23: DA5GNUVDNUTJP4FICSFX0Q5FD | EI23: 00 | EJ23: X | EK23: 0 | EL23: 0 | FY23: 7 | FZ23: ZBUDH | GA23: 1 | GB23: P | GC23: I | GD23: EQ | GE23: 20150930 | GF23: 30/09/2015 | GJ23: 0 | GL23: 0 | GN23: 0 | GO23: Master Data Key Date | GP23: 60 | GS23: 0DATE | GT23: 20150930 | HW23: 11 | HX23: 0000000113
AE24: 9 | AF24: 0ORGUNIT | AG24: Organizational Unit | AH24: X | AK24: 0003 | AM24: Chief Executive Srv, Chief Executive Organisation Structu... | AS24: 1 | AT24: 03 | AU24: X | AV24: ORGEH | AW24: 000 | AX24: 20150930 | AY24: K | AZ24: 0ORGUNIT | BA24: A | BD24: H | BE24: 0ORGUNIT | BF24: A | BJ24: 00000000 | BK24: 0000 | BM24: 0 | BO24: X | BQ24: 2 | BR24: 1 | BS24: 1 | BT24: 1 | BU24: 0 | BV24: 0 | CB24: DA5GMC5Q7BWUTTLLUV0V2JF95 | CI24: 0000 | CM24: 11 | CN24: D4O2P4A3SH8H6WZIVSYIIRP4P | CO24: DEN9GQ7MCHDBOHOGWSAAUUM7T | CP24: Advisor Total | CQ24: 0015 | CS24: S | CU24: L | DG24: 11 | DH24: 0ORGUNIT | DI24: 0PURCH_ORG | DJ24: Purchasing org. | DK24: 0000 | DL24: X | DM24: 0 | DN24: 0 | DO24: 0 | DT24: 0000 | EA24: 11 | EB24: D4O2P4A3SHKS4U7O0FWBLM1H5 | EC24: DA5GNUVDNUUBDQR9OBVJ35JP5 | EI24: 00 | EJ24: X | EK24: 0 | EL24: 0 | FY24: 7 | FZ24: ZZPERAR | GA24: 1 | GB24: M | GJ24: 0 | GL24: 0 | GN24: 0 | GO24: ZPersonnel Area | GP24: 60 | GS24: ZPERSAREA | HW24: 11 | HX24: 0000000120
AE25: 9 | AF25: 0PERS_SAREA | AG25: Personnel Subarea | AH25: X | AK25: 0004 | AR25: U | AS25: 1 | AT25: 03 | AX25: 00000000 | AY25: K | AZ25: 0PERS_SAREA | BA25: A | BD25: H | BJ25: 00000000 | BK25: 0000 | BM25: 0 | BR25: 1 | BS25: 1 | BT25: 1 | BU25: 0 | BV25: 0 | CB25: DA5GMC5Q7BXMIFXD6EGH4YTIX | CI25: 0000 | CM25: 11 | CN25: D4O2P4A3SH8H6WZIVSYIIRP4P | CO25: D4O2P4A3SHQXLSTQKRD8517ND | CP25: Psychologist F/T | CQ25: 0016 | CS25: S | CU25: L | DG25: 11 | DH25: 0ORGUNIT | DI25: 0PUR_GROUP | DJ25: Purchasing group | DK25: 0000 | DL25: X | DM25: 0 | DN25: 0 | DO25: 0 | DT25: 0000 | EA25: 11 | EB25: D4O2P4A3SHKS4U7O0FWBLM1H5 | EC25: DA5GNUVDNUV32D30ZVB55KXYX | EI25: 00 | EJ25: X | EK25: 0 | EL25: 0 | FY25: 6 | FZ25: ZS_DT_1 | GA25: 1 | GB25: P | GC25: I | GD25: EQ | GE25: 20150930 | GF25: 30/09/2015 | GJ25: 0 | GL25: 0 | GN25: 0 | GO25: Target date 1 | GP25: 60 | GS25: ZEMP_STRT | GT25: 20150930 | HW25: 11 | HX25: 0000000121
AE26: 9 | AF26: ZTEILK | AG26: Checkbox for Part-Ti | AH26: X | AK26: 0005 | AS26: 1 | AT26: 03 | AX26: 00000000 | AY26: K | AZ26: ZTEILK | BA26: A | BD26: H | BJ26: 00000000 | BK26: 0000 | BM26: 0 | BR26: 1 | BS26: 1 | BT26: 1 | BU26: 0 | BV26: 0 | CB26: DA5GMC5Q7BYE7294HXW37E7SP | CI26: 0000 | CM26: 11 | CN26: D4O2P4A3SH8H6WZIVSYIIRP4P | CO26: DEN9FTLAHQ3GG75TIN3QE0F09 | CP26: Psychologist P/T | CQ26: 0017 | CS26: S | CU26: L | DG26: 11 | DH26: 0ORGUNIT | DI26: 0SALESORG | DJ26: Sales Organization | DK26: 0000 | DL26: X | DM26: 0 | DN26: 0 | DO26: 0 | DT26: 0000 | EA26: 11 | EB26: D4O2P4A3SHKS4U7O0FWBLM1H5 | EC26: DA5GNUVDNUVUQZESBEQR80C8P | EI26: 00 | EJ26: X | EK26: 0 | EL26: 0 | FY26: 6 | FZ26: ZP_ORGUN | GA26: 2 | GB26: M | GJ26: 0 | GL26: 0 | GN26: 0 | GO26: Org Unit Hierarchy (Selection option, optional) | GP26: 60 | GS26: 0ORGUNIT | HW26: 11 | HX26: 0000010001 | HY26: DA5N022H38ONP4F305JXW2SQH
AE27: 9 | AF27: ZPRIM_ID | AG27: ZPrimary Employee ID | AH27: X | AK27: 0006 | AS27: 2 | AT27: 03 | AX27: 00000000 | AY27: K | AZ27: ZPRIM_ID | BA27: A | BD27: H | BJ27: 00000000 | BK27: 0000 | BM27: 0 | BR27: 1 | BS27: 1 | BT27: 1 | BU27: 0 | BV27: 0 | CB27: DA5GMC5Q7BZ5VOKVTHBP9TM2H | CI27: 0000 | CM27: 11 | CN27: D4O2P4A3SH8H6WZIVSYIIRP4P | CO27: DEN9GQ7MCHE3D4088BPWXA0HL | CP27: Psychologist Total | CQ27: 0018 | CS27: S | CU27: L | DG27: 11 | DH27: 0ORGUNIT | DI27: 0SALES_GRP | DJ27: Sales group | DK27: 0000 | DL27: X | DM27: 0 | DN27: 0 | DO27: 0 | DT27: 0000 | EA27: 11 | EB27: D4O2P4A3SHKS4U7O0FWBLM1H5 | EC27: DA5GNUVDNUWMFLQJMY6DAFQIH | EI27: 00 | EJ27: X | EK27: 0 | EL27: 0 | FY27: 6 | FZ27: ZBUDH | GA27: 1 | GB27: P | GC27: I | GD27: EQ | GE27: 20150930 | GF27: 30/09/2015 | GJ27: 0 | GL27: 0 | GN27: 0 | GO27: Master Data Key Date | GP27: 60 | GS27: 0DATE | GT27: 20150930 | HW27: 11 | HX27: 0000010002 | HY27: DA5N022H38D4FTIP721QVNUNT
AE28: 9 | AF28: 0CNTRCTTYPE | AG28: Contract Type | AH28: X | AK28: 0007 | AS28: 1 | AT28: 03 | AX28: 00000000 | AY28: K | AZ28: 0CNTRCTTYPE | BA28: A | BD28: H | BJ28: 00000000 | BK28: 0000 | BM28: 0 | BR28: 1 | BS28: 1 | BT28: 1 | BU28: 0 | BV28: 0 | CB28: DB0ZLJBMLZ1X022DVK6MFOZQX | CI28: 0000 | CM28: 11 | CN28: D4O2P4A3SH8H6WZIVSYIIRP4P | CO28: D4O2P4A3SHU0CA4RUX3OEQSQH | CP28: Total Workforce F/T | CQ28: 0019 | CS28: F | CU28: L | DG28: 11 | DH28: 0ORGUNIT | DI28: 0SALES_OFF | DJ28: Sales Office | DK28: 0000 | DL28: X | DM28: 0 | DN28: 0 | DO28: 0 | DT28: 0000 | EA28: 11 | EB28: D4O2P4A3SHNUVBIPALMRVBMK9 | EC28: DA5GNUVDNUSS0I3R190AYAR5L | EI28: 00 | EJ28: X | EK28: 0 | EL28: 0 | FY28: 6 | FZ28: ZZPERAR | GA28: 1 | GB28: M | GJ28: 0 | GL28: 0 | GN28: 0 | GO28: ZPersonnel Area | GP28: 60 | GS28: ZPERSAREA | HW28: 11 | HX28: 0000000105
AE29: 9 | AF29: DA5GNUVDNUS0BVRZPPKOVVCVT | AG29: Sexual Orientation - Rev 2011 | AI29: X | AJ29: X | AK29: 0001 | AR29: U | AT29: 00 | AY29: K | AZ29: DA5GNUVDNUS0BVRZPPKOVVCVT | BA29: A | BJ29: 00000000 | BK29: 0000 | BL29: X | BM29: 0 | BR29: 0 | BS29: 0 | BT29: 0 | BU29: 0 | BV29: 0 | CB29: DA5GNUVDNUS0BVRZPPKOVVCVT | CI29: 0000 | CM29: 11 | CN29: D4O2P4A3SH8H6WZIVSYIIRP4P | CO29: DEN9FTLAHQ484THKU6JCGFTA1 | CP29: Total Workforce P/T | CQ29: 0020 | CS29: F | CU29: L | DG29: 11 | DH29: 0CNTRCTTYPE | DI29: 0CNTRCTISFT | DJ29: Fixed-Term Contract | DK29: 0000 | DL29: X | DM29: 2 | DN29: 0 | DO29: 0 | DT29: 0000 | EA29: 11 | EB29: D4O2P4A3SHNUVBIPALMRVBMK9 | EC29: DA5GNUVDNUTJP4FICSFX0Q5FD | EI29: 00 | EJ29: X | EK29: 0 | EL29: 0 | FY29: 5 | FZ29: ZS_DT_1 | GA29: 1 | GB29: P | GC29: I | GD29: EQ | GE29: 20150930 | GF29: 30/09/2015 | GJ29: 0 | GL29: 0 | GN29: 0 | GO29: Target date 1 | GP29: 60 | GS29: ZEMP_STRT | GT29: 20150930 | HW29: 11 | HX29: 0000000106
AE30: 9 | AF30: D4O21W1IBUB3HEML1KWP5YGOP | AG30: WP Bandings | AI30: X | AJ30: Y | AK30: 0001 | AR30: U | AT30: 00 | AY30: K | AZ30: D4O21W1IBUB3HEML1KWP5YGOP | BA30: A | BJ30: 00000000 | BK30: 0000 | BM30: 0 | BR30: 0 | BS30: 0 | BT30: 0 | BU30: 0 | BV30: 0 | CB30: D4O21W1IBUB3HEML1KWP5YGOP | CI30: 0000 | CM30: 11 | CN30: D4O2P4A3SH8H6WZIVSYIIRP4P | CO30: DEN9GQ7MCHEV1QBZJV5IZPERD | CP30: Total Workforce Total | CQ30: 0021 | CS30: F | CU30: L | DG30: 10 | DH30: 0ORGUNIT | DI30: 0BBPPURGRPX | DJ30: Ind.Purchasing Group | DK30: 0000 | DL30: X | DM30: 2 | DN30: 0 | DO30: 0 | DT30: 0000 | EA30: 11 | EB30: D4O2P4A3SHNUVBIPALMRVBMK9 | EC30: DA5GNUVDNUUBDQR9OBVJ35JP5 | EI30: 00 | EJ30: X | EK30: 0 | EL30: 0 | FY30: 5 | FZ30: ZP_ORGUN | GA30: 2 | GB30: M | GJ30: 0 | GL30: 0 | GN30: 0 | GO30: Org Unit Hierarchy (Selection option, optional) | GP30: 60 | GS30: 0ORGUNIT | HW30: 11 | HX30: 0000000112 | HY30: 0
AE31: 8 | AF31: 0PAYRL_AREA | AG31: Payroll Area | AH31: X | AK31: 0001 | AS31: 0 | AT31: 03 | AX31: 00000000 | AY31: K | AZ31: 0PAYRL_AREA | BA31: A | BD31: H | BJ31: 00000000 | BK31: 0000 | BM31: 0 | BR31: 1 | BS31: 1 | BT31: 1 | BU31: 0 | BV31: 0 | CB31: DA5GMC5Q7BVBGKY37S5MXOMPL | CI31: 0000 | CM31: 10 | CN31: D4O21W1IBUB3HEML1KWP5YGOP | CO31: D4O21W1IBUDEJ9LV077JD8NI1 | CP31: Grade 1 - 4 F/T | CQ31: 0001 | CS31: S | CU31: L | DG31: 10 | DH31: 0ORGUNIT | DI31: 0BBPPURORGX | DJ31: Ind. Purchasing Org. | DK31: 0000 | DL31: X | DM31: 2 | DN31: 0 | DO31: 0 | DT31: 0000 | EA31: 11 | EB31: D4O2P4A3SHNUVBIPALMRVBMK9 | EC31: DA5GNUVDNUV32D30ZVB55KXYX | EI31: 00 | EJ31: X | EK31: 0 | EL31: 0 | FY31: 5 | FZ31: ZBUDH | GA31: 1 | GB31: P | GC31: I | GD31: EQ | GE31: 20150930 | GF31: 30/09/2015 | GJ31: 0 | GL31: 0 | GN31: 0 | GO31: Master Data Key Date | GP31: 60 | GS31: 0DATE | GT31: 20150930 | HW31: 11 | HX31: 0000000200 | HY31: X
AE32: 8 | AF32: ZPERSAREA | AG32: ZPersonal Area | AH32: X | AK32: 0002 | AS32: 2 | AT32: 03 | AX32: 00000000 | AY32: K | AZ32: ZPERSAREA | BA32: A | BD32: H | BJ32: 00000000 | BK32: 0000 | BM32: 0 | BR32: 1 | BS32: 1 | BT32: 1 | BU32: 0 | BV32: 0 | CB32: DA5GMC5Q7BW3579UJBL9040ZD | CI32: 0000 | CM32: 10 | CN32: DA5GNUVDNUS0BVRZPPKOVVCVT | CO32: DA5GNUVDNUSS0I3R190AYAR5L | CP32: Bi-Sexual | CQ32: 0001 | CS32: S | CU32: L | CV32: X | DG32: 10 | DH32: 0ORGUNIT | DI32: 0BBP_BUYID | DJ32: Buyer ID | DK32: 0000 | DL32: X | DM32: 5 | DN32: 0 | DO32: 0 | DT32: 0000 | EA32: 11 | EB32: D4O2P4A3SHNUVBIPALMRVBMK9 | EC32: DA5GNUVDNUVUQZESBEQR80C8P | EI32: 00 | EJ32: X | EK32: 0 | EL32: 0 | FY32: 5 | FZ32: ZZPERAR | GA32: 1 | GB32: M | GJ32: 0 | GL32: 0 | GN32: 0 | GO32: ZPersonnel Area | GP32: 60 | GS32: ZPERSAREA | HW32: 11 | HX32: 0000004000 | HY32: X
AE33: 8 | AF33: 0ORGUNIT | AG33: Organizational Unit | AH33: X | AK33: 0003 | AM33: Corporate Services | AS33: 1 | AT33: 03 | AU33: X | AV33: ORGEH | AW33: 000 | AX33: 20150930 | AY33: K | AZ33: 0ORGUNIT | BA33: A | BD33: H | BE33: 0ORGUNIT | BF33: A | BJ33: 00000000 | BK33: 0000 | BM33: 0 | BO33: 1 | BQ33: 2 | BR33: 1 | BS33: 1 | BT33: 1 | BU33: 0 | BV33: 0 | CB33: DA5GMC5Q7BWUTTLLUV0V2JF95 | CI33: 0000 | CM33: 10 | CN33: DA5GNUVDNUS0BVRZPPKOVVCVT | CO33: DA5GNUVDNUTJP4FICSFX0Q5FD | CP33: Heterosexual | CQ33: 0002 | CS33: S | CU33: L | CV33: X | DG33: 10 | DH33: 0ORGUNIT | DI33: 0BBP_ISCOMP | DJ33: Organizational Unit is Company | DK33: 0000 | DL33: X | DM33: 1 | DN33: 0 | DO33: 0 | DT33: 0000 | EA33: 11 | EB33: D4O2P4A3SHNUVBIPALMRVBMK9 | EC33: DA5GNUVDNUWMFLQJMY6DAFQIH | EI33: 00 | EJ33: X | EK33: 0 | EL33: 0 | FY33: 4 | FZ33: ZS_DT_1 | GA33: 1 | GB33: P | GC33: I | GD33: EQ | GE33: 20150930 | GF33: 30/09/2015 | GJ33: 0 | GL33: 0 | GN33: 0 | GO33: Target date 1 | GP33: 60 | GS33: ZEMP_STRT | GT33: 20150930 | HW33: 11 | HX33: 0000009001 | HY33: Workforce Profile Sexual Orientation Teachers (2011) Revised
AE34: 8 | AF34: 0PERS_SAREA | AG34: Personnel Subarea | AH34: X | AK34: 0004 | AR34: U | AS34: 1 | AT34: 03 | AX34: 00000000 | AY34: K | AZ34: 0PERS_SAREA | BA34: A | BD34: H | BJ34: 00000000 | BK34: 0000 | BM34: 0 | BR34: 1 | BS34: 1 | BT34: 1 | BU34: 0 | BV34: 0 | CB34: DA5GMC5Q7BXMIFXD6EGH4YTIX | CI34: 0000 | CM34: 10 | CN34: D4O21W1IBUB3HEML1KWP5YGOP | CO34: D4O21W1IBUKBOUJOW241Z37Y1 | CP34: Grade 1 - 4 P/T | CQ34: 0002 | CS34: S | CU34: L | DG34: 10 | DH34: 0ORGUNIT | DI34: 0BUS_AREA | DJ34: Business area | DK34: 0000 | DL34: X | DM34: 0 | DN34: 0 | DO34: 0 | DT34: 0000 | EA34: 11 | EB34: D4O2P4A3SHQXLSTQKRD8517ND | EC34: DA5GNUVDNUSS0I3R190AYAR5L | EI34: 00 | EJ34: X | EK34: 0 | EL34: 0 | FY34: 4 | FZ34: ZP_ORGUN | GA34: 2 | GB34: M | GJ34: 0 | GL34: 0 | GN34: 0 | GO34: Org Unit Hierarchy (Selection option, optional) | GP34: 60 | GS34: 0ORGUNIT | HW34: 11 | HX34: 0000000114 | HY34: 1
AE35: 8 | AF35: ZTEILK | AG35: Checkbox for Part-Ti | AH35: X | AK35: 0005 | AS35: 1 | AT35: 03 | AX35: 00000000 | AY35: K | AZ35: ZTEILK | BA35: A | BD35: H | BJ35: 00000000 | BK35: 0000 | BM35: 0 | BR35: 1 | BS35: 1 | BT35: 1 | BU35: 0 | BV35: 0 | CB35: DA5GMC5Q7BYE7294HXW37E7SP | CI35: 0000 | CM35: 10 | CN35: DA5GNUVDNUS0BVRZPPKOVVCVT | CO35: DA5GNUVDNUUBDQR9OBVJ35JP5 | CP35: Lesbian/Gay | CQ35: 0003 | CS35: S | CU35: L | CV35: X | DG35: 10 | DH35: 0ORGUNIT | DI35: 0COMP_CODE | DJ35: Company code | DK35: 0000 | DL35: X | DM35: 0 | DN35: 0 | DO35: 0 | DT35: 0000 | EA35: 11 | EB35: D4O2P4A3SHQXLSTQKRD8517ND | EC35: DA5GNUVDNUTJP4FICSFX0Q5FD | EI35: 00 | EJ35: X | EK35: 0 | EL35: 0 | FY35: 4 | FZ35: ZBUDH | GA35: 1 | GB35: P | GC35: I | GD35: EQ | GE35: 20150930 | GF35: 30/09/2015 | GJ35: 0 | GL35: 0 | GN35: 0 | GO35: Master Data Key Date | GP35: 60 | GS35: 0DATE | GT35: 20150930 | HW35: 10 | HX35: 0000000107 | HY35: DA5GMC5Q7BOEB009BX94BU29L
AE36: 8 | AF36: ZPRIM_ID | AG36: ZPrimary Employee ID | AH36: X | AK36: 0006 | AS36: 2 | AT36: 03 | AX36: 00000000 | AY36: K | AZ36: ZPRIM_ID | BA36: A | BD36: H | BJ36: 00000000 | BK36: 0000 | BM36: 0 | BR36: 1 | BS36: 1 | BT36: 1 | BU36: 0 | BV36: 0 | CB36: DA5GMC5Q7BZ5VOKVTHBP9TM2H | CI36: 0000 | CM36: 10 | CN36: D4O21W1IBUB3HEML1KWP5YGOP | CO36: DEMAFDB5LZ4S252XBVM7GJP4P | CP36: Grade 1 - 4 Total | CQ36: 0003 | CS36: S | CU36: L | DG36: 10 | DH36: 0ORGUNIT | DI36: 0CO_MST_AR | DJ36: Controlling Area of Master Cost Center | DK36: 0000 | DL36: X | DM36: 0 | DN36: 0 | DO36: 0 | DT36: 0000 | EA36: 11 | EB36: D4O2P4A3SHQXLSTQKRD8517ND | EC36: DA5GNUVDNUUBDQR9OBVJ35JP5 | EI36: 00 | EJ36: X | EK36: 0 | EL36: 0 | FY36: 4 | FZ36: ZZPERAR | GA36: 1 | GB36: M | GJ36: 0 | GL36: 0 | GN36: 0 | GO36: ZPersonnel Area | GP36: 60 | GS36: ZPERSAREA | HW36: 10 | HX36: 0000000100 | HY36: X
AE37: 8 | AF37: 0CNTRCTTYPE | AG37: Contract Type | AH37: X | AK37: 0007 | AS37: 1 | AT37: 03 | AX37: 00000000 | AY37: K | AZ37: 0CNTRCTTYPE | BA37: A | BD37: H | BJ37: 00000000 | BK37: 0000 | BM37: 0 | BR37: 1 | BS37: 1 | BT37: 1 | BU37: 0 | BV37: 0 | CB37: DB0ZLJBMLZ1X022DVK6MFOZQX | CI37: 0000 | CM37: 10 | CN37: DA5GNUVDNUS0BVRZPPKOVVCVT | CO37: DA5GNUVDNUV32D30ZVB55KXYX | CP37: Transgender | CQ37: 0004 | CS37: S | CU37: L | CV37: X | DG37: 10 | DH37: 0ORGUNIT | DI37: 0CRMSALGRPX | DJ37: Sls Group: Indicator | DK37: 0000 | DL37: X | DM37: 2 | DN37: 0 | DO37: 0 | DT37: 0000 | EA37: 11 | EB37: D4O2P4A3SHQXLSTQKRD8517ND | EC37: DA5GNUVDNUV32D30ZVB55KXYX | EI37: 00 | EJ37: X | EK37: 0 | EL37: 0 | HW37: 10 | HX37: 0000000101
AE38: 8 | AF38: DA5GNUVDNUS0BVRZPPKOVVCVT | AG38: Sexual Orientation - Rev 2011 | AI38: X | AJ38: X | AK38: 0001 | AR38: U | AT38: 00 | AY38: K | AZ38: DA5GNUVDNUS0BVRZPPKOVVCVT | BA38: A | BJ38: 00000000 | BK38: 0000 | BL38: X | BM38: 0 | BR38: 0 | BS38: 0 | BT38: 0 | BU38: 0 | BV38: 0 | CB38: DA5GNUVDNUS0BVRZPPKOVVCVT | CI38: 0000 | CM38: 10 | CN38: D4O21W1IBUB3HEML1KWP5YGOP | CO38: D4O21W1IBUE67VXMBQN5FO1RT | CP38: Grade 5 - 7 F/T | CQ38: 0004 | CS38: S | CU38: L | DG38: 10 | DH38: 0ORGUNIT | DI38: 0CRMSALOFFX | DJ38: Sls Office:Indicator | DK38: 0000 | DL38: X | DM38: 2 | DN38: 0 | DO38: 0 | DT38: 0000 | EA38: 11 | EB38: D4O2P4A3SHQXLSTQKRD8517ND | EC38: DA5GNUVDNUVUQZESBEQR80C8P | EI38: 00 | EJ38: X | EK38: 0 | EL38: 0 | HW38: 10 | HX38: 0000000104 | HY38: 1
AE39: 8 | AF39: D4O21W1IBUB3HEML1KWP5YGOP | AG39: WP Bandings | AI39: X | AJ39: Y | AK39: 0001 | AR39: U | AT39: 00 | AY39: K | AZ39: D4O21W1IBUB3HEML1KWP5YGOP | BA39: A | BJ39: 00000000 | BK39: 0000 | BM39: 0 | BR39: 0 | BS39: 0 | BT39: 0 | BU39: 0 | BV39: 0 | CB39: D4O21W1IBUB3HEML1KWP5YGOP | CI39: 0000 | CM39: 10 | CN39: D4O21W1IBUB3HEML1KWP5YGOP | CO39: D4O21W1IBUL3DGVG7LJO1IM7T | CP39: Grade 5 - 7 P/T | CQ39: 0005 | CS39: S | CU39: L | DG39: 10 | DH39: 0ORGUNIT | DI39: 0CRMSALORGX | DJ39: Sales Org. Indicator | DK39: 0000 | DL39: X | DM39: 2 | DN39: 0 | DO39: 0 | DT39: 0000 | EA39: 11 | EB39: D4O2P4A3SHQXLSTQKRD8517ND | EC39: DA5GNUVDNUWMFLQJMY6DAFQIH | EI39: 00 | EJ39: X | EK39: 0 | EL39: 0 | HW39: 10 | HX39: 0000000103
AE40: 7 | AF40: 0PAYRL_AREA | AG40: Payroll Area | AH40: X | AK40: 0001 | AS40: 0 | AT40: 03 | AX40: 00000000 | AY40: K | AZ40: 0PAYRL_AREA | BA40: A | BD40: H | BJ40: 00000000 | BK40: 0000 | BM40: 0 | BR40: 1 | BS40: 1 | BT40: 1 | BU40: 0 | BV40: 0 | CB40: DA5GMC5Q7BVBGKY37S5MXOMPL | CI40: 0000 | CM40: 10 | CN40: DA5GNUVDNUS0BVRZPPKOVVCVT | CO40: DA5GNUVDNUVUQZESBEQR80C8P | CP40: Other | CQ40: 0005 | CS40: S | CU40: L | CV40: X | DG40: 10 | DH40: 0ORGUNIT | DI40: 0CRMSRVTGRP | DJ40: Ex. CRM Service Org. | DK40: 0000 | DL40: X | DM40: 1 | DN40: 0 | DO40: 0 | DT40: 0000 | EA40: 11 | EB40: D4O2P4A3SHU0CA4RUX3OEQSQH | EC40: DA5GNUVDNUSS0I3R190AYAR5L | EE40: 0 | EI40: 00 | EJ40: X | EK40: 0 | EL40: 0 | HW40: 10 | HX40: 0000000102 | HY40: 1
AE41: 7 | AF41: ZPERSAREA | AG41: ZPersonal Area | AH41: X | AK41: 0002 | AM41: Development and Regeneration | AS41: 2 | AT41: 03 | AX41: 00000000 | AY41: K | AZ41: ZPERSAREA | BA41: A | BD41: H | BJ41: 00000000 | BK41: 0000 | BM41: 0 | BO41: 1 | BR41: 1 | BS41: 1 | BT41: 1 | BU41: 0 | BV41: 0 | CB41: DA5GMC5Q7BW3579UJBL9040ZD | CI41: 0000 | CM41: 10 | CN41: DA5GNUVDNUS0BVRZPPKOVVCVT | CO41: DA5GNUVDNUWMFLQJMY6DAFQIH | CP41: Not Disclosed | CQ41: 0006 | CS41: S | CU41: L | CV41: X | DG41: 10 | DH41: 0ORGUNIT | DI41: 0CRM_SALGRP | DJ41: CRM Sales Group | DK41: 0000 | DL41: X | DM41: 1 | DN41: 0 | DO41: 0 | DT41: 0000 | EA41: 11 | EB41: D4O2P4A3SHU0CA4RUX3OEQSQH | EC41: DA5GNUVDNUTJP4FICSFX0Q5FD | EE41: 0 | EI41: 00 | EJ41: X | EK41: 0 | EL41: 0 | HW41: 10 | HX41: 0000000108
AE42: 7 | AF42: 0ORGUNIT | AG42: Organizational Unit | AH42: X | AK42: 0003 | AS42: 1 | AT42: 03 | AU42: X | AV42: ORGEH | AW42: 000 | AX42: 20150930 | AY42: K | AZ42: 0ORGUNIT | BA42: A | BD42: H | BE42: 0ORGUNIT | BF42: A | BJ42: 00000000 | BK42: 0000 | BM42: 0 | BQ42: 2 | BR42: 1 | BS42: 1 | BT42: 1 | BU42: 0 | BV42: 0 | CB42: DA5GMC5Q7BWUTTLLUV0V2JF95 | CI42: 0000 | CM42: 10 | CN42: D4O21W1IBUB3HEML1KWP5YGOP | CO42: DEMAGSP8VDTMCQ2Z9KSRG7UGP | CP42: Grade 5 - 7 Total | CQ42: 0006 | CS42: S | CU42: L | DG42: 10 | DH42: 0ORGUNIT | DI42: 0CRM_SALOFF | DJ42: CRM Sales Office | DK42: 0000 | DL42: X | DM42: 1 | DN42: 0 | DO42: 0 | DT42: 0000 | EA42: 11 | EB42: D4O2P4A3SHU0CA4RUX3OEQSQH | EC42: DA5GNUVDNUUBDQR9OBVJ35JP5 | EE42: 0 | EI42: 00 | EJ42: X | EK42: 0 | EL42: 0 | HW42: 10 | HX42: 0000009002 | HY42: D4O21W1IBUB3HEML1KWP5YGOP
AE43: 7 | AF43: 0PERS_SAREA | AG43: Personnel Subarea | AH43: X | AK43: 0004 | AR43: U | AS43: 1 | AT43: 03 | AX43: 00000000 | AY43: K | AZ43: 0PERS_SAREA | BA43: A | BD43: H | BJ43: 00000000 | BK43: 0000 | BM43: 0 | BR43: 1 | BS43: 1 | BT43: 1 | BU43: 0 | BV43: 0 | CB43: DA5GMC5Q7BXMIFXD6EGH4YTIX | CI43: 0000 | CM43: 10 | CN43: D4O21W1IBUB3HEML1KWP5YGOP | CO43: D4O21W1IBUEXWI9DNA2RI3G1L | CP43: Grade 8 F/T | CQ43: 0007 | CS43: S | CU43: L | DG43: 10 | DH43: 0ORGUNIT | DI43: 0CRM_SALORG | DJ43: CRM Sales Org. | DK43: 0000 | DL43: X | DM43: 1 | DN43: 0 | DO43: 0 | DT43: 0000 | EA43: 11 | EB43: D4O2P4A3SHU0CA4RUX3OEQSQH | EC43: DA5GNUVDNUV32D30ZVB55KXYX | EE43: 0 | EI43: 00 | EJ43: X | EK43: 0 | EL43: 0 | HW43: 10 | HX43: 0000009000
AE44: 7 | AF44: ZTEILK | AG44: Checkbox for Part-Ti | AH44: X | AK44: 0005 | AS44: 1 | AT44: 03 | AX44: 00000000 | AY44: K | AZ44: ZTEILK | BA44: A | BD44: H | BJ44: 00000000 | BK44: 0000 | BM44: 0 | BR44: 1 | BS44: 1 | BT44: 1 | BU44: 0 | BV44: 0 | CB44: DA5GMC5Q7BYE7294HXW37E7SP | CI44: 0000 | CM44: 10 | CN44: D4O21W1IBUB3HEML1KWP5YGOP | CO44: D4O21W1IBULV2377J4ZA3Y0HL | CP44: Grade 8 P/T | CQ44: 0008 | CS44: S | CU44: L | DG44: 10 | DH44: 0ORGUNIT | DI44: 0CRM_SRVORG | DJ44: Service Org. CRM | DK44: 0000 | DL44: X | DM44: 1 | DN44: 0 | DO44: 0 | DT44: 0000 | EA44: 11 | EB44: D4O2P4A3SHU0CA4RUX3OEQSQH | EC44: DA5GNUVDNUVUQZESBEQR80C8P | EE44: 0 | EI44: 00 | EJ44: X | EK44: 0 | EL44: 0 | HW44: 10 | HX44: 0000000010
AE45: 7 | AF45: ZPRIM_ID | AG45: ZPrimary Employee ID | AH45: X | AK45: 0006 | AS45: 2 | AT45: 03 | AX45: 00000000 | AY45: K | AZ45: ZPRIM_ID | BA45: A | BD45: H | BJ45: 00000000 | BK45: 0000 | BM45: 0 | BR45: 1 | BS45: 1 | BT45: 1 | BU45: 0 | BV45: 0 | CB45: DA5GMC5Q7BZ5VOKVTHBP9TM2H | CI45: 0000 | CM45: 10 | CN45: D4O21W1IBUB3HEML1KWP5YGOP | CO45: D4O21W1IBV18QHQDXXNJGHXX5 | CP45: Grade 8 Total | CQ45: 0009 | CS45: S | CU45: L | DG45: 10 | DH45: 0ORGUNIT | DI45: 0LOGSYS | DJ45: Source System | DK45: 0000 | DL45: X | DM45: 1 | DN45: 0 | DO45: 0 | DT45: 0000 | EA45: 11 | EB45: D4O2P4A3SHU0CA4RUX3OEQSQH | EC45: DA5GNUVDNUWMFLQJMY6DAFQIH | EE45: 0 | EI45: 00 | EJ45: X | EK45: 0 | EL45: 0 | HW45: 10 | HX45: 0000000021
AE46: 7 | AF46: 0CNTRCTTYPE | AG46: Contract Type | AH46: X | AK46: 0007 | AS46: 1 | AT46: 03 | AX46: 00000000 | AY46: K | AZ46: 0CNTRCTTYPE | BA46: A | BD46: H | BJ46: 00000000 | BK46: 0000 | BM46: 0 | BR46: 1 | BS46: 1 | BT46: 1 | BU46: 0 | BV46: 0 | CB46: DB0ZLJBMLZ1X022DVK6MFOZQX | CI46: 0000 | CM46: 10 | CN46: D4O21W1IBUB3HEML1KWP5YGOP | CO46: D4O21W1IBUFPL4L4YTIDKIUBD | CP46: ACZ Grade 8 F/T | CQ46: 0010 | CS46: S | CU46: L | DG46: 10 | DH46: 0ORGUNIT | DI46: 0MAST_CCTR | DJ46: Master Cost Center | DK46: 0000 | DL46: X | DM46: 0 | DN46: 0 | DO46: 0 | DT46: 0000 | EA46: 11 | EB46: DEN9FTLAHPZM13J0WXXO1VFND | EC46: DA5GNUVDNUSS0I3R190AYAR5L | EI46: 00 | EJ46: X | EK46: 0 | EL46: 0 | HW46: 10 | HX46: 0000000022
AE47: 7 | AF47: DA5GNUVDNUS0BVRZPPKOVVCVT | AG47: Sexual Orientation - Rev 2011 | AI47: X | AJ47: X | AK47: 0001 | AR47: U | AT47: 00 | AY47: K | AZ47: DA5GNUVDNUS0BVRZPPKOVVCVT | BA47: A | BJ47: 00000000 | BK47: 0000 | BL47: X | BM47: 0 | BR47: 0 | BS47: 0 | BT47: 0 | BU47: 0 | BV47: 0 | CB47: DA5GNUVDNUS0BVRZPPKOVVCVT | CI47: 0000 | CM47: 10 | CN47: D4O21W1IBUB3HEML1KWP5YGOP | CO47: D4O21W1IBUMMQPIYUOEW6DERD | CP47: ACZ Grade 8 P/T | CQ47: 0011 | CS47: S | CU47: L | DG47: 10 | DH47: 0ORGUNIT | DI47: 0PERS_AREA | DJ47: Personnel Area | DK47: 0000 | DL47: X | DM47: 1 | DN47: 0 | DO47: 0 | DT47: 0000 | EA47: 11 | EB47: DEN9FTLAHPZM13J0WXXO1VFND | EC47: DA5GNUVDNUTJP4FICSFX0Q5FD | EI47: 00 | EJ47: X | EK47: 0 | EL47: 0 | HW47: 10 | HX47: 0000000023
AE48: 7 | AF48: D4O21W1IBUB3HEML1KWP5YGOP | AG48: WP Bandings | AI48: X | AJ48: Y | AK48: 0001 | AR48: U | AT48: 00 | AY48: K | AZ48: D4O21W1IBUB3HEML1KWP5YGOP | BA48: A | BJ48: 00000000 | BK48: 0000 | BM48: 0 | BR48: 0 | BS48: 0 | BT48: 0 | BU48: 0 | BV48: 0 | CB48: D4O21W1IBUB3HEML1KWP5YGOP | CI48: 0000 | CM48: 10 | CN48: D4O21W1IBUB3HEML1KWP5YGOP | CO48: D4O21W1IBV0H1VEMME7XE2JND | CP48: ACZ Grade 8 Total | CQ48: 0012 | CS48: S | CU48: L | DG48: 10 | DH48: 0ORGUNIT | DI48: 0PERS_SAREA | DJ48: Personnel Subarea | DK48: 0000 | DL48: X | DM48: 1 | DN48: 0 | DO48: 0 | DT48: 0000 | EA48: 11 | EB48: DEN9FTLAHPZM13J0WXXO1VFND | EC48: DA5GNUVDNUUBDQR9OBVJ35JP5 | EI48: 00 | EJ48: X | EK48: 0 | EL48: 0 | HW48: 10 | HX48: 0000000030
AE49: 6 | AF49: 0PAYRL_AREA | AG49: Payroll Area | AH49: X | AK49: 0001 | AS49: 0 | AT49: 03 | AX49: 00000000 | AY49: K | AZ49: 0PAYRL_AREA | BA49: A | BD49: H | BJ49: 00000000 | BK49: 0000 | BM49: 0 | BR49: 1 | BS49: 1 | BT49: 1 | BU49: 0 | BV49: 0 | CB49: DA5GMC5Q7BVBGKY37S5MXOMPL | CI49: 0000 | CM49: 10 | CN49: D4O21W1IBUB3HEML1KWP5YGOP | CO49: D4O21W1IBUH8YD8NLWDLPDMUX | CP49: Grade 9 - 15 F/T | CQ49: 0013 | CS49: S | CU49: L | DG49: 10 | DH49: 0ORGUNIT | DI49: 0PLANT | DJ49: Plant | DK49: 0000 | DL49: X | DM49: 0 | DN49: 0 | DO49: 0 | DT49: 0000 | EA49: 11 | EB49: DEN9FTLAHPZM13J0WXXO1VFND | EC49: DA5GNUVDNUV32D30ZVB55KXYX | EI49: 00 | EJ49: X | EK49: 0 | EL49: 0 | HW49: 10 | HX49: 0000000040
AE50: 6 | AF50: ZPERSAREA | AG50: ZPersonal Area | AH50: X | AK50: 0002 | AM50: Financial | AS50: 2 | AT50: 03 | AX50: 00000000 | AY50: K | AZ50: ZPERSAREA | BA50: A | BD50: H | BJ50: 00000000 | BK50: 0000 | BM50: 0 | BO50: 1 | BR50: 1 | BS50: 1 | BT50: 1 | BU50: 0 | BV50: 0 | CB50: DA5GMC5Q7BW3579UJBL9040ZD | CI50: 0000 | CM50: 10 | CN50: D4O21W1IBUB3HEML1KWP5YGOP | CO50: DEN03PYIT5FSSAA2U7ST53H15 | CP50: Grade 9 - 15 P/T | CQ50: 0014 | CS50: S | CU50: L | DG50: 10 | DH50: 0ORGUNIT | DI50: 0PURCH_ORG | DJ50: Purchasing org. | DK50: 0000 | DL50: X | DM50: 0 | DN50: 0 | DO50: 0 | DT50: 0000 | EA50: 11 | EB50: DEN9FTLAHPZM13J0WXXO1VFND | EC50: DA5GNUVDNUVUQZESBEQR80C8P | EI50: 00 | EJ50: X | EK50: 0 | EL50: 0 | HW50: 10 | HX50: 0000000041
AE51: 6 | AF51: 0ORGUNIT | AG51: Organizational Unit | AH51: X | AK51: 0003 | AS51: 1 | AT51: 03 | AU51: X | AV51: ORGEH | AW51: 000 | AX51: 20150930 | AY51: K | AZ51: 0ORGUNIT | BA51: A | BD51: H | BE51: 0ORGUNIT | BF51: A | BJ51: 00000000 | BK51: 0000 | BM51: 0 | BQ51: 2 | BR51: 1 | BS51: 1 | BT51: 1 | BU51: 0 | BV51: 0 | CB51: DA5GMC5Q7BWUTTLLUV0V2JF95 | CI51: 0000 | CM51: 10 | CN51: D4O21W1IBUB3HEML1KWP5YGOP | CO51: D4O21W1IBUO63Y6HHRA4B87AX | CP51: Grade 9 - 15 Total | CQ51: 0015 | CS51: S | CU51: L | DG51: 10 | DH51: 0ORGUNIT | DI51: 0PUR_GROUP | DJ51: Purchasing group | DK51: 0000 | DL51: X | DM51: 0 | DN51: 0 | DO51: 0 | DT51: 0000 | EA51: 11 | EB51: DEN9FTLAHPZM13J0WXXO1VFND | EC51: DA5GNUVDNUWMFLQJMY6DAFQIH | EI51: 00 | EJ51: X | EK51: 0 | EL51: 0 | HW51: 10 | HX51: 0000000042 | HY51: 0
AE52: 6 | AF52: 0PERS_SAREA | AG52: Personnel Subarea | AH52: X | AK52: 0004 | AR52: U | AS52: 1 | AT52: 03 | AX52: 00000000 | AY52: K | AZ52: 0PERS_SAREA | BA52: A | BD52: H | BJ52: 00000000 | BK52: 0000 | BM52: 0 | BR52: 1 | BS52: 1 | BT52: 1 | BU52: 0 | BV52: 0 | CB52: DA5GMC5Q7BXMIFXD6EGH4YTIX | CI52: 0000 | CM52: 10 | CN52: D4O21W1IBUB3HEML1KWP5YGOP | CO52: D4O21W1IBUGH9QWWACXZMY8L5 | CP52: ACZ Grade 9 - 15 F/T | CQ52: 0016 | CS52: S | CU52: L | DG52: 10 | DH52: 0ORGUNIT | DI52: 0SALESORG | DJ52: Sales Organization | DK52: 0000 | DL52: X | DM52: 0 | DN52: 0 | DO52: 0 | DT52: 0000 | EA52: 11 | EB52: DEN9FTLAHQ0DPPUS8HDA4ATX5 | EC52: DA5GNUVDNUSS0I3R190AYAR5L | EI52: 00 | EJ52: X | EK52: 0 | EL52: 0 | HW52: 10 | HX52: 0000000043 | HY52: 0
AE53: 6 | AF53: ZTEILK | AG53: Checkbox for Part-Ti | AH53: X | AK53: 0005 | AS53: 1 | AT53: 03 | AX53: 00000000 | AY53: K | AZ53: ZTEILK | BA53: A | BD53: H | BJ53: 00000000 | BK53: 0000 | BM53: 0 | BR53: 1 | BS53: 1 | BT53: 1 | BU53: 0 | BV53: 0 | CB53: DA5GMC5Q7BYE7294HXW37E7SP | CI53: 0000 | CM53: 10 | CN53: D4O21W1IBUB3HEML1KWP5YGOP | CO53: D4O21W1IBUNEFBUQ67UI8ST15 | CP53: ACZ Grade 9 - 15 P/T | CQ53: 0017 | CS53: S | CU53: L | DG53: 10 | DH53: 0ORGUNIT | DI53: 0SALES_GRP | DJ53: Sales group | DK53: 0000 | DL53: X | DM53: 0 | DN53: 0 | DO53: 0 | DT53: 0000 | EA53: 11 | EB53: DEN9FTLAHQ0DPPUS8HDA4ATX5 | EC53: DA5GNUVDNUTJP4FICSFX0Q5FD | EI53: 00 | EJ53: X | EK53: 0 | EL53: 0 | HW53: 10 | HX53: 0000000109 | HY53: 0
AE54: 6 | AF54: ZPRIM_ID | AG54: ZPrimary Employee ID | AH54: X | AK54: 0006 | AS54: 2 | AT54: 03 | AX54: 00000000 | AY54: K | AZ54: ZPRIM_ID | BA54: A | BD54: H | BJ54: 00000000 | BK54: 0000 | BM54: 0 | BR54: 1 | BS54: 1 | BT54: 1 | BU54: 0 | BV54: 0 | CB54: DA5GMC5Q7BZ5VOKVTHBP9TM2H | CI54: 0000 | CM54: 10 | CN54: D4O21W1IBUB3HEML1KWP5YGOP | CO54: DEN04FDC1K04NBJW47LA7T915 | CP54: ACZ Grade 9 - 15 Total | CQ54: 0018 | CS54: S | CU54: L | DG54: 10 | DH54: 0ORGUNIT | DI54: 0SALES_OFF | DJ54: Sales Office | DK54: 0000 | DL54: X | DM54: 0 | DN54: 0 | DO54: 0 | DT54: 0000 | EA54: 11 | EB54: DEN9FTLAHQ0DPPUS8HDA4ATX5 | EC54: DA5GNUVDNUUBDQR9OBVJ35JP5 | EI54: 00 | EJ54: X | EK54: 0 | EL54: 0 | HW54: 10 | HX54: 0000000113
AE55: 6 | AF55: 0CNTRCTTYPE | AG55: Contract Type | AH55: X | AK55: 0007 | AS55: 1 | AT55: 03 | AX55: 00000000 | AY55: K | AZ55: 0CNTRCTTYPE | BA55: A | BD55: H | BJ55: 00000000 | BK55: 0000 | BM55: 0 | BR55: 1 | BS55: 1 | BT55: 1 | BU55: 0 | BV55: 0 | CB55: DB0ZLJBMLZ1X022DVK6MFOZQX | CI55: 0000 | CM55: 10 | CN55: D4O21W1IBUB3HEML1KWP5YGOP | CO55: D4O21W1IBUWMMRRU0P1V1XKAH | CP55: Other (Not Migrated) F/T | CQ55: 0019 | CS55: F | CU55: L | DG55: 10 | DH55: 0CNTRCTTYPE | DI55: 0CNTRCTISFT | DJ55: Fixed-Term Contract | DK55: 0000 | DL55: X | DM55: 2 | DN55: 0 | DO55: 0 | DT55: 0000 | EA55: 11 | EB55: DEN9FTLAHQ0DPPUS8HDA4ATX5 | EC55: DA5GNUVDNUV32D30ZVB55KXYX | EI55: 00 | EJ55: X | EK55: 0 | EL55: 0 | HW55: 10 | HX55: 0000000120
AE56: 6 | AF56: DA5GNUVDNUS0BVRZPPKOVVCVT | AG56: Sexual Orientation - Rev 2011 | AI56: X | AJ56: X | AK56: 0001 | AR56: U | AT56: 00 | AY56: K | AZ56: DA5GNUVDNUS0BVRZPPKOVVCVT | BA56: A | BJ56: 00000000 | BK56: 0000 | BL56: X | BM56: 0 | BR56: 0 | BS56: 0 | BT56: 0 | BU56: 0 | BV56: 0 | CB56: DA5GNUVDNUS0BVRZPPKOVVCVT | CI56: 0000 | CM56: 10 | CN56: D4O21W1IBUB3HEML1KWP5YGOP | CO56: DEN07Y1DTSNAWTLQYCBLILED5 | CP56: Other (Not Migrated) P/T | CQ56: 0020 | CS56: F | CU56: L | DG56: 9 | DH56: 0ORGUNIT | DI56: 0BBPPURGRPX | DJ56: Ind.Purchasing Group | DK56: 0000 | DL56: X | DM56: 2 | DN56: 0 | DO56: 0 | DT56: 0000 | EA56: 11 | EB56: DEN9FTLAHQ0DPPUS8HDA4ATX5 | EC56: DA5GNUVDNUVUQZESBEQR80C8P | EI56: 00 | EJ56: X | EK56: 0 | EL56: 0 | HW56: 10 | HX56: 0000000121
AE57: 6 | AF57: D4O21W1IBUB3HEML1KWP5YGOP | AG57: WP Bandings | AI57: X | AJ57: Y | AK57: 0001 | AR57: U | AT57: 00 | AY57: K | AZ57: D4O21W1IBUB3HEML1KWP5YGOP | BA57: A | BJ57: 00000000 | BK57: 0000 | BM57: 0 | BR57: 0 | BS57: 0 | BT57: 0 | BU57: 0 | BV57: 0 | CB57: D4O21W1IBUB3HEML1KWP5YGOP | CI57: 0000 | CM57: 10 | CN57: D4O21W1IBUB3HEML1KWP5YGOP | CO57: DEN07Y1DTSPLYOL0WYMFPVL6H | CP57: Other (Not Migrated) Total | CQ57: 0021 | CS57: F | CU57: L | DG57: 9 | DH57: 0ORGUNIT | DI57: 0BBPPURORGX | DJ57: Ind. Purchasing Org. | DK57: 0000 | DL57: X | DM57: 2 | DN57: 0 | DO57: 0 | DT57: 0000 | EA57: 11 | EB57: DEN9FTLAHQ0DPPUS8HDA4ATX5 | EC57: DA5GNUVDNUWMFLQJMY6DAFQIH | EI57: 00 | EJ57: X | EK57: 0 | EL57: 0 | HW57: 10 | HX57: 0000010001 | HY57: DA5GMC5Q7C0P8X8EGK6XEOEM1
AE58: 5 | AF58: 0PAYRL_AREA | AG58: Payroll Area | AH58: X | AK58: 0001 | AS58: 0 | AT58: 03 | AX58: 00000000 | AY58: K | AZ58: 0PAYRL_AREA | BA58: A | BD58: H | BJ58: 00000000 | BK58: 0000 | BM58: 0 | BR58: 1 | BS58: 1 | BT58: 1 | BU58: 0 | BV58: 0 | CB58: DA5GMC5Q7BVBGKY37S5MXOMPL | CI58: 0000 | CM58: 10 | CN58: D4O21W1IBUB3HEML1KWP5YGOP | CO58: D4O21W1IBUY600FCNRX36SCU1 | CP58: Total Teaching Staff F/T | CQ58: 0022 | CS58: S | CU58: L | DG58: 9 | DH58: 0ORGUNIT | DI58: 0BBP_BUYID | DJ58: Buyer ID | DK58: 0000 | DL58: X | DM58: 5 | DN58: 0 | DO58: 0 | DT58: 0000 | EA58: 11 | EB58: DEN9FTLAHQ15EC6JK0SW6Q86X | EC58: DA5GNUVDNUSS0I3R190AYAR5L | EI58: 00 | EJ58: X | EK58: 0 | EL58: 0 | HW58: 10 | HX58: 0000010002 | HY58: DA5GMC5Q7BOEB009BX94BU29L
AE59: 5 | AF59: ZPERSAREA | AG59: ZPersonal Area | AH59: X | AK59: 0002 | AM59: Land and Environmental | AS59: 2 | AT59: 03 | AX59: 00000000 | AY59: K | AZ59: ZPERSAREA | BA59: A | BD59: H | BJ59: 00000000 | BK59: 0000 | BM59: 0 | BO59: 1 | BR59: 1 | BS59: 1 | BT59: 1 | BU59: 0 | BV59: 0 | CB59: DA5GMC5Q7BW3579UJBL9040ZD | CI59: 0000 | CM59: 10 | CN59: D4O21W1IBUB3HEML1KWP5YGOP | CO59: DEN0OSIFULCZTDTFE8U7RBQIH | CP59: Total Teaching Staff P/T | CQ59: 0023 | CS59: S | CU59: L | DG59: 9 | DH59: 0ORGUNIT | DI59: 0BBP_ISCOMP | DJ59: Organizational Unit is Company | DK59: 0000 | DL59: X | DM59: 1 | DN59: 0 | DO59: 0 | DT59: 0000 | EA59: 11 | EB59: DEN9FTLAHQ15EC6JK0SW6Q86X | EC59: DA5GNUVDNUTJP4FICSFX0Q5FD | EI59: 00 | EJ59: X | EK59: 0 | EL59: 0 | HW59: 10 | HX59: 0000000105
AE60: 5 | AF60: 0ORGUNIT | AG60: Organizational Unit | AH60: X | AK60: 0003 | AS60: 1 | AT60: 03 | AU60: X | AV60: ORGEH | AW60: 000 | AX60: 20150930 | AY60: K | AZ60: 0ORGUNIT | BA60: A | BD60: H | BE60: 0ORGUNIT | BF60: A | BJ60: 00000000 | BK60: 0000 | BM60: 0 | BQ60: 2 | BR60: 1 | BS60: 1 | BT60: 1 | BU60: 0 | BV60: 0 | CB60: DA5GMC5Q7BWUTTLLUV0V2JF95 | CI60: 0000 | CM60: 10 | CN60: D4O21W1IBUB3HEML1KWP5YGOP | CO60: DEN0OSIFULDRI056PS9TTR4S9 | CP60: Total Teaching Staff | CQ60: 0024 | CS60: S | CU60: L | DG60: 9 | DH60: 0ORGUNIT | DI60: 0BUS_AREA | DJ60: Business area | DK60: 0000 | DL60: X | DM60: 0 | DN60: 0 | DO60: 0 | DT60: 0000 | EA60: 11 | EB60: DEN9FTLAHQ15EC6JK0SW6Q86X | EC60: DA5GNUVDNUUBDQR9OBVJ35JP5 | EI60: 00 | EJ60: X | EK60: 0 | EL60: 0 | HW60: 10 | HX60: 0000000106
AE61: 5 | AF61: 0PERS_SAREA | AG61: Personnel Subarea | AH61: X | AK61: 0004 | AR61: U | AS61: 1 | AT61: 03 | AX61: 00000000 | AY61: K | AZ61: 0PERS_SAREA | BA61: A | BD61: H | BJ61: 00000000 | BK61: 0000 | BM61: 0 | BR61: 1 | BS61: 1 | BT61: 1 | BU61: 0 | BV61: 0 | CB61: DA5GMC5Q7BXMIFXD6EGH4YTIX | CI61: 0000 | CM61: 10 | CN61: D4O21W1IBUB3HEML1KWP5YGOP | CO61: DEN0OSIFULEJ6MGY1BPFW6J21 | CP61: Total Non-Teaching Staff F/T | CQ61: 0025 | CS61: S | CU61: L | DG61: 9 | DH61: 0ORGUNIT | DI61: 0COMP_CODE | DJ61: Company code | DK61: 0000 | DL61: X | DM61: 0 | DN61: 0 | DO61: 0 | DT61: 0000 | EA61: 11 | EB61: DEN9FTLAHQ15EC6JK0SW6Q86X | EC61: DA5GNUVDNUV32D30ZVB55KXYX | EI61: 00 | EJ61: X | EK61: 0 | EL61: 0 | HW61: 10 | HX61: 0000000112 | HY61: 0
AE62: 5 | AF62: ZTEILK | AG62: Checkbox for Part-Ti | AH62: X | AK62: 0005 | AS62: 1 | AT62: 03 | AX62: 00000000 | AY62: K | AZ62: ZTEILK | BA62: A | BD62: H | BJ62: 00000000 | BK62: 0000 | BM62: 0 | BR62: 1 | BS62: 1 | BT62: 1 | BU62: 0 | BV62: 0 | CB62: DA5GMC5Q7BYE7294HXW37E7SP | CI62: 0000 | CM62: 10 | CN62: D4O21W1IBUB3HEML1KWP5YGOP | CO62: DEN07Y1DTSOUA299LF6TNG6WP | CP62: Total Non-Teaching Staff P/T | CQ62: 0026 | CS62: S | CU62: L | DG62: 9 | DH62: 0ORGUNIT | DI62: 0CO_MST_AR | DJ62: Controlling Area of Master Cost Center | DK62: 0000 | DL62: X | DM62: 0 | DN62: 0 | DO62: 0 | DT62: 0000 | EA62: 11 | EB62: DEN9FTLAHQ15EC6JK0SW6Q86X | EC62: DA5GNUVDNUVUQZESBEQR80C8P | EI62: 00 | EJ62: X | EK62: 0 | EL62: 0 | HW62: 10 | HX62: 0000000200 | HY62: X
AE63: 5 | AF63: ZPRIM_ID | AG63: ZPrimary Employee ID | AH63: X | AK63: 0006 | AS63: 2 | AT63: 03 | AX63: 00000000 | AY63: K | AZ63: ZPRIM_ID | BA63: A | BD63: H | BJ63: 00000000 | BK63: 0000 | BM63: 0 | BR63: 1 | BS63: 1 | BT63: 1 | BU63: 0 | BV63: 0 | CB63: DA5GMC5Q7BZ5VOKVTHBP9TM2H | CI63: 0000 | CM63: 10 | CN63: D4O21W1IBUB3HEML1KWP5YGOP | CO63: DEN07Y1DTSR5BX8JK1HNUQDQ1 | CP63: Total Non-Teaching Staff | CQ63: 0027 | CS63: S | CU63: L | DG63: 9 | DH63: 0ORGUNIT | DI63: 0CRMSALGRPX | DJ63: Sls Group: Indicator | DK63: 0000 | DL63: X | DM63: 2 | DN63: 0 | DO63: 0 | DT63: 0000 | EA63: 11 | EB63: DEN9FTLAHQ15EC6JK0SW6Q86X | EC63: DA5GNUVDNUWMFLQJMY6DAFQIH | EI63: 00 | EJ63: X | EK63: 0 | EL63: 0 | HW63: 10 | HX63: 0000004000 | HY63: X
AE64: 5 | AF64: 0CNTRCTTYPE | AG64: Contract Type | AH64: X | AK64: 0007 | AS64: 1 | AT64: 03 | AX64: 00000000 | AY64: K | AZ64: 0CNTRCTTYPE | BA64: A | BD64: H | BJ64: 00000000 | BK64: 0000 | BM64: 0 | BR64: 1 | BS64: 1 | BT64: 1 | BU64: 0 | BV64: 0 | CB64: DB0ZLJBMLZ1X022DVK6MFOZQX | CI64: 0000 | CM64: 10 | CN64: D4O21W1IBUB3HEML1KWP5YGOP | CO64: D4O21W1IBUXEBE3LC8HH4CYK9 | CP64: Total - All WPBR Grades F/T | CQ64: 0028 | CS64: F | CU64: L | DG64: 9 | DH64: 0ORGUNIT | DI64: 0CRMSALOFFX | DJ64: Sls Office:Indicator | DK64: 0000 | DL64: X | DM64: 2 | DN64: 0 | DO64: 0 | DT64: 0000 | EA64: 11 | EB64: DEN9FTLAHQ1X2YIAVK8I95MGP | EC64: DA5GNUVDNUSS0I3R190AYAR5L | EI64: 00 | EJ64: X | EK64: 0 | EL64: 0 | HW64: 10 | HX64: 0000009001 | HY64: Workforce Profile Sexual Orientation (2011) Revised
AE65: 5 | AF65: DA5GNUVDNUS0BVRZPPKOVVCVT | AG65: Sexual Orientation - Rev 2011 | AI65: X | AJ65: X | AK65: 0001 | AR65: U | AT65: 00 | AY65: K | AZ65: DA5GNUVDNUS0BVRZPPKOVVCVT | BA65: A | BJ65: 00000000 | BK65: 0000 | BL65: X | BM65: 0 | BR65: 0 | BS65: 0 | BT65: 0 | BU65: 0 | BV65: 0 | CB65: DA5GNUVDNUS0BVRZPPKOVVCVT | CI65: 0000 | CM65: 10 | CN65: D4O21W1IBUB3HEML1KWP5YGOP | CO65: DEN07Y1DTSO2LFXI9VR7L0SMX | CP65: Total - All WPBR Grades P/T | CQ65: 0029 | CS65: F | CU65: L | DG65: 9 | DH65: 0ORGUNIT | DI65: 0CRMSALORGX | DJ65: Sales Org. Indicator | DK65: 0000 | DL65: X | DM65: 2 | DN65: 0 | DO65: 0 | DT65: 0000 | EA65: 11 | EB65: DEN9FTLAHQ1X2YIAVK8I95MGP | EC65: DA5GNUVDNUTJP4FICSFX0Q5FD | EI65: 00 | EJ65: X | EK65: 0 | EL65: 0 | HW65: 10 | HX65: 0000000114 | HY65: 1
AE66: 5 | AF66: D4O21W1IBUB3HEML1KWP5YGOP | AG66: WP Bandings | AI66: X | AJ66: Y | AK66: 0001 | AR66: U | AT66: 00 | AY66: K | AZ66: D4O21W1IBUB3HEML1KWP5YGOP | BA66: A | BJ66: 00000000 | BK66: 0000 | BM66: 0 | BR66: 0 | BS66: 0 | BT66: 0 | BU66: 0 | BV66: 0 | CB66: D4O21W1IBUB3HEML1KWP5YGOP | CI66: 0000 | CM66: 10 | CN66: D4O21W1IBUB3HEML1KWP5YGOP | CO66: DEN07Y1DTSQDNAWS8I21SAZG9 | CP66: Total Workforce - All WPBR Grades | CQ66: 0030 | CS66: F | CU66: L | DG66: 9 | DH66: 0ORGUNIT | DI66: 0CRMSRVTGRP | DJ66: Ex. CRM Service Org. | DK66: 0000 | DL66: X | DM66: 1 | DN66: 0 | DO66: 0 | DT66: 0000 | EA66: 11 | EB66: DEN9FTLAHQ1X2YIAVK8I95MGP | EC66: DA5GNUVDNUUBDQR9OBVJ35JP5 | EI66: 00 | EJ66: X | EK66: 0 | EL66: 0 | HW66: 9 | HX66: 0000000107 | HY66: DA5GMC5Q7BOEB009BX94BU29L
AE67: 4 | AF67: 0PAYRL_AREA | AG67: Payroll Area | AH67: X | AK67: 0001 | AS67: 0 | AT67: 03 | AX67: 00000000 | AY67: K | AZ67: 0PAYRL_AREA | BA67: A | BD67: H | BJ67: 00000000 | BK67: 0000 | BM67: 0 | BR67: 1 | BS67: 1 | BT67: 1 | BU67: 0 | BV67: 0 | CB67: DA5GMC5Q7BVBGKY37S5MXOMPL | CI67: 0000 | CM67: 10 | CN67: D4O21W1IBUB3HEML1KWP5YGOP | CO67: D4O21W1IBV8XKOZZ5BZO4RWMX | CP67: Total Workforce (All) F/T | CQ67: 0031 | CS67: S | CU67: L | DG67: 9 | DH67: 0ORGUNIT | DI67: 0CRM_SALGRP | DJ67: CRM Sales Group | DK67: 0000 | DL67: X | DM67: 1 | DN67: 0 | DO67: 0 | DT67: 0000 | EA67: 11 | EB67: DEN9FTLAHQ1X2YIAVK8I95MGP | EC67: DA5GNUVDNUV32D30ZVB55KXYX | EI67: 00 | EJ67: X | EK67: 0 | EL67: 0 | HW67: 9 | HX67: 0000000100 | HY67: X
AE68: 4 | AF68: ZPERSAREA | AG68: ZPersonal Area | AH68: X | AK68: 0002 | AM68: Social Work | AS68: 2 | AT68: 03 | AX68: 00000000 | AY68: K | AZ68: ZPERSAREA | BA68: A | BD68: H | BJ68: 00000000 | BK68: 0000 | BM68: 0 | BO68: 1 | BR68: 1 | BS68: 1 | BT68: 1 | BU68: 0 | BV68: 0 | CB68: DA5GMC5Q7BW3579UJBL9040ZD | CI68: 0000 | CM68: 10 | CN68: D4O21W1IBUB3HEML1KWP5YGOP | CO68: DEN07Y1DTSRX0JKAVKX9X5RZT | CP68: Total Workforce (All) P/T | CQ68: 0032 | CS68: S | CU68: L | DG68: 9 | DH68: 0ORGUNIT | DI68: 0CRM_SALOFF | DJ68: CRM Sales Office | DK68: 0000 | DL68: X | DM68: 1 | DN68: 0 | DO68: 0 | DT68: 0000 | EA68: 11 | EB68: DEN9FTLAHQ1X2YIAVK8I95MGP | EC68: DA5GNUVDNUVUQZESBEQR80C8P | EI68: 00 | EJ68: X | EK68: 0 | EL68: 0 | HW68: 9 | HX68: 0000000101
AE69: 4 | AF69: 0ORGUNIT | AG69: Organizational Unit | AH69: X | AK69: 0003 | AS69: 1 | AT69: 03 | AU69: X | AV69: ORGEH | AW69: 000 | AX69: 20150930 | AY69: K | AZ69: 0ORGUNIT | BA69: A | BD69: H | BE69: 0ORGUNIT | BF69: A | BJ69: 00000000 | BK69: 0000 | BM69: 0 | BQ69: 2 | BR69: 1 | BS69: 1 | BT69: 1 | BU69: 0 | BV69: 0 | CB69: DA5GMC5Q7BWUTTLLUV0V2JF95 | CI69: 0000 | CM69: 10 | CN69: D4O21W1IBUB3HEML1KWP5YGOP | CO69: DEN07Y1DTSSOP5W274CVZL69L | CP69: Total Workforce (All) | CQ69: 0033 | CS69: S | CU69: L | DG69: 9 | DH69: 0ORGUNIT | DI69: 0CRM_SALORG | DJ69: CRM Sales Org. | DK69: 0000 | DL69: X | DM69: 1 | DN69: 0 | DO69: 0 | DT69: 0000 | EA69: 11 | EB69: DEN9FTLAHQ1X2YIAVK8I95MGP | EC69: DA5GNUVDNUWMFLQJMY6DAFQIH | EI69: 00 | EJ69: X | EK69: 0 | EL69: 0 | HW69: 9 | HX69: 0000000104 | HY69: 1
AE70: 4 | AF70: 0PERS_SAREA | AG70: Personnel Subarea | AH70: X | AK70: 0004 | AR70: U | AS70: 1 | AT70: 03 | AX70: 00000000 | AY70: K | AZ70: 0PERS_SAREA | BA70: A | BD70: H | BJ70: 00000000 | BK70: 0000 | BM70: 0 | BR70: 1 | BS70: 1 | BT70: 1 | BU70: 0 | BV70: 0 | CB70: DA5GMC5Q7BXMIFXD6EGH4YTIX | CI70: 0000 | CM70: 9 | CN70: D4O21W1IBUB3HEML1KWP5YGOP | CO70: D4O21W1IBUDEJ9LV077JD8NI1 | CP70: Grade 1 - 4 F/T | CQ70: 0001 | CS70: S | CU70: L | DG70: 9 | DH70: 0ORGUNIT | DI70: 0CRM_SRVORG | DJ70: Service Org. CRM | DK70: 0000 | DL70: X | DM70: 1 | DN70: 0 | DO70: 0 | DT70: 0000 | EA70: 11 | EB70: DEN9FTLAHQ2ORKU273O4BL0QH | EC70: DA5GNUVDNUSS0I3R190AYAR5L | EI70: 00 | EJ70: X | EK70: 0 | EL70: 0 | HW70: 9 | HX70: 0000000103
AE71: 4 | AF71: ZTEILK | AG71: Checkbox for Part-Ti | AH71: X | AK71: 0005 | AS71: 1 | AT71: 03 | AX71: 00000000 | AY71: K | AZ71: ZTEILK | BA71: A | BD71: H | BJ71: 00000000 | BK71: 0000 | BM71: 0 | BR71: 1 | BS71: 1 | BT71: 1 | BU71: 0 | BV71: 0 | CB71: DA5GMC5Q7BYE7294HXW37E7SP | CI71: 0000 | CM71: 9 | CN71: DA5GNUVDNUS0BVRZPPKOVVCVT | CO71: DA5GNUVDNUSS0I3R190AYAR5L | CP71: Bi-Sexual | CQ71: 0001 | CS71: S | CU71: L | CV71: X | DG71: 9 | DH71: 0ORGUNIT | DI71: 0LOGSYS | DJ71: Source System | DK71: 0000 | DL71: X | DM71: 1 | DN71: 0 | DO71: 0 | DT71: 0000 | EA71: 11 | EB71: DEN9FTLAHQ2ORKU273O4BL0QH | EC71: DA5GNUVDNUTJP4FICSFX0Q5FD | EI71: 00 | EJ71: X | EK71: 0 | EL71: 0 | HW71: 9 | HX71: 0000000102 | HY71: 1
AE72: 4 | AF72: ZPRIM_ID | AG72: ZPrimary Employee ID | AH72: X | AK72: 0006 | AS72: 2 | AT72: 03 | AX72: 00000000 | AY72: K | AZ72: ZPRIM_ID | BA72: A | BD72: H | BJ72: 00000000 | BK72: 0000 | BM72: 0 | BR72: 1 | BS72: 1 | BT72: 1 | BU72: 0 | BV72: 0 | CB72: DA5GMC5Q7BZ5VOKVTHBP9TM2H | CI72: 0000 | CM72: 9 | CN72: DA5GNUVDNUS0BVRZPPKOVVCVT | CO72: DA5GNUVDNUTJP4FICSFX0Q5FD | CP72: Heterosexual | CQ72: 0002 | CS72: S | CU72: L | CV72: X | DG72: 9 | DH72: 0ORGUNIT | DI72: 0MAST_CCTR | DJ72: Master Cost Center | DK72: 0000 | DL72: X | DM72: 0 | DN72: 0 | DO72: 0 | DT72: 0000 | EA72: 11 | EB72: DEN9FTLAHQ2ORKU273O4BL0QH | EC72: DA5GNUVDNUUBDQR9OBVJ35JP5 | EI72: 00 | EJ72: X | EK72: 0 | EL72: 0 | HW72: 9 | HX72: 0000000108
AE73: 4 | AF73: 0CNTRCTTYPE | AG73: Contract Type | AH73: X | AK73: 0007 | AS73: 1 | AT73: 03 | AX73: 00000000 | AY73: K | AZ73: 0CNTRCTTYPE | BA73: A | BD73: H | BJ73: 00000000 | BK73: 0000 | BM73: 0 | BR73: 1 | BS73: 1 | BT73: 1 | BU73: 0 | BV73: 0 | CB73: DB0ZLJBMLZ1X022DVK6MFOZQX | CI73: 0000 | CM73: 9 | CN73: D4O21W1IBUB3HEML1KWP5YGOP | CO73: D4O21W1IBUKBOUJOW241Z37Y1 | CP73: Grade 1 - 4 P/T | CQ73: 0002 | CS73: S | CU73: L | DG73: 9 | DH73: 0ORGUNIT | DI73: 0PERS_AREA | DJ73: Personnel Area | DK73: 0000 | DL73: X | DM73: 1 | DN73: 0 | DO73: 0 | DT73: 0000 | EA73: 11 | EB73: DEN9FTLAHQ2ORKU273O4BL0QH | EC73: DA5GNUVDNUV32D30ZVB55KXYX | EI73: 00 | EJ73: X | EK73: 0 | EL73: 0 | HW73: 9 | HX73: 0000009002 | HY73: D4O21W1IBUB3HEML1KWP5YGOP
AE74: 4 | AF74: DA5GNUVDNUS0BVRZPPKOVVCVT | AG74: Sexual Orientation - Rev 2011 | AI74: X | AJ74: X | AK74: 0001 | AR74: U | AT74: 00 | AY74: K | AZ74: DA5GNUVDNUS0BVRZPPKOVVCVT | BA74: A | BJ74: 00000000 | BK74: 0000 | BL74: X | BM74: 0 | BR74: 0 | BS74: 0 | BT74: 0 | BU74: 0 | BV74: 0 | CB74: DA5GNUVDNUS0BVRZPPKOVVCVT | CI74: 0000 | CM74: 9 | CN74: DA5GNUVDNUS0BVRZPPKOVVCVT | CO74: DA5GNUVDNUUBDQR9OBVJ35JP5 | CP74: Lesbian/Gay | CQ74: 0003 | CS74: S | CU74: L | CV74: X | DG74: 9 | DH74: 0ORGUNIT | DI74: 0PERS_SAREA | DJ74: Personnel Subarea | DK74: 0000 | DL74: X | DM74: 1 | DN74: 0 | DO74: 0 | DT74: 0000 | EA74: 11 | EB74: DEN9FTLAHQ2ORKU273O4BL0QH | EC74: DA5GNUVDNUVUQZESBEQR80C8P | EI74: 00 | EJ74: X | EK74: 0 | EL74: 0 | HW74: 9 | HX74: 0000009000
AE75: 4 | AF75: D4O21W1IBUB3HEML1KWP5YGOP | AG75: WP Bandings | AI75: X | AJ75: Y | AK75: 0001 | AR75: U | AT75: 00 | AY75: K | AZ75: D4O21W1IBUB3HEML1KWP5YGOP | BA75: A | BJ75: 00000000 | BK75: 0000 | BM75: 0 | BR75: 0 | BS75: 0 | BT75: 0 | BU75: 0 | BV75: 0 | CB75: D4O21W1IBUB3HEML1KWP5YGOP | CI75: 0000 | CM75: 9 | CN75: D4O21W1IBUB3HEML1KWP5YGOP | CO75: DEMAFDB5LZ4S252XBVM7GJP4P | CP75: Grade 1 - 4 Total | CQ75: 0003 | CS75: S | CU75: L | DG75: 9 | DH75: 0ORGUNIT | DI75: 0PLANT | DJ75: Plant | DK75: 0000 | DL75: X | DM75: 0 | DN75: 0 | DO75: 0 | DT75: 0000 | EA75: 11 | EB75: DEN9FTLAHQ2ORKU273O4BL0QH | EC75: DA5GNUVDNUWMFLQJMY6DAFQIH | EI75: 00 | EJ75: X | EK75: 0 | EL75: 0 | HW75: 9 | HX75: 0000000010
CM76: 9 | CN76: DA5GNUVDNUS0BVRZPPKOVVCVT | CO76: DA5GNUVDNUV32D30ZVB55KXYX | CP76: Transgender | CQ76: 0004 | CS76: S | CU76: L | CV76: X | DG76: 9 | DH76: 0ORGUNIT | DI76: 0PURCH_ORG | DJ76: Purchasing org. | DK76: 0000 | DL76: X | DM76: 0 | DN76: 0 | DO76: 0 | DT76: 0000 | EA76: 11 | EB76: DEN9FTLAHQ3GG75TIN3QE0F09 | EC76: DA5GNUVDNUSS0I3R190AYAR5L | EI76: 00 | EJ76: X | EK76: 0 | EL76: 0 | HW76: 9 | HX76: 0000000021
CM77: 9 | CN77: D4O21W1IBUB3HEML1KWP5YGOP | CO77: D4O21W1IBUE67VXMBQN5FO1RT | CP77: Grade 5 - 7 F/T | CQ77: 0004 | CS77: S | CU77: L | DG77: 9 | DH77: 0ORGUNIT | DI77: 0PUR_GROUP | DJ77: Purchasing group | DK77: 0000 | DL77: X | DM77: 0 | DN77: 0 | DO77: 0 | DT77: 0000 | EA77: 11 | EB77: DEN9FTLAHQ3GG75TIN3QE0F09 | EC77: DA5GNUVDNUTJP4FICSFX0Q5FD | EI77: 00 | EJ77: X | EK77: 0 | EL77: 0 | HW77: 9 | HX77: 0000000022
CM78: 9 | CN78: D4O21W1IBUB3HEML1KWP5YGOP | CO78: D4O21W1IBUL3DGVG7LJO1IM7T | CP78: Grade 5 - 7 P/T | CQ78: 0005 | CS78: S | CU78: L | DG78: 9 | DH78: 0ORGUNIT | DI78: 0SALESORG | DJ78: Sales Organization | DK78: 0000 | DL78: X | DM78: 0 | DN78: 0 | DO78: 0 | DT78: 0000 | EA78: 11 | EB78: DEN9FTLAHQ3GG75TIN3QE0F09 | EC78: DA5GNUVDNUUBDQR9OBVJ35JP5 | EI78: 00 | EJ78: X | EK78: 0 | EL78: 0 | HW78: 9 | HX78: 0000000023
CM79: 9 | CN79: DA5GNUVDNUS0BVRZPPKOVVCVT | CO79: DA5GNUVDNUVUQZESBEQR80C8P | CP79: Other | CQ79: 0005 | CS79: S | CU79: L | CV79: X | DG79: 9 | DH79: 0ORGUNIT | DI79: 0SALES_GRP | DJ79: Sales group | DK79: 0000 | DL79: X | DM79: 0 | DN79: 0 | DO79: 0 | DT79: 0000 | EA79: 11 | EB79: DEN9FTLAHQ3GG75TIN3QE0F09 | EC79: DA5GNUVDNUV32D30ZVB55KXYX | EI79: 00 | EJ79: X | EK79: 0 | EL79: 0 | HW79: 9 | HX79: 0000000030
CM80: 9 | CN80: DA5GNUVDNUS0BVRZPPKOVVCVT | CO80: DA5GNUVDNUWMFLQJMY6DAFQIH | CP80: Not Disclosed | CQ80: 0006 | CS80: S | CU80: L | CV80: X | DG80: 9 | DH80: 0ORGUNIT | DI80: 0SALES_OFF | DJ80: Sales Office | DK80: 0000 | DL80: X | DM80: 0 | DN80: 0 | DO80: 0 | DT80: 0000 | EA80: 11 | EB80: DEN9FTLAHQ3GG75TIN3QE0F09 | EC80: DA5GNUVDNUVUQZESBEQR80C8P | EI80: 00 | EJ80: X | EK80: 0 | EL80: 0 | HW80: 9 | HX80: 0000000040
CM81: 9 | CN81: D4O21W1IBUB3HEML1KWP5YGOP | CO81: DEMAGSP8VDTMCQ2Z9KSRG7UGP | CP81: Grade 5 - 7 Total | CQ81: 0006 | CS81: S | CU81: L | DG81: 9 | DH81: 0CNTRCTTYPE | DI81: 0CNTRCTISFT | DJ81: Fixed-Term Contract | DK81: 0000 | DL81: X | DM81: 2 | DN81: 0 | DO81: 0 | DT81: 0000 | EA81: 11 | EB81: DEN9FTLAHQ3GG75TIN3QE0F09 | EC81: DA5GNUVDNUWMFLQJMY6DAFQIH | EI81: 00 | EJ81: X | EK81: 0 | EL81: 0 | HW81: 9 | HX81: 0000000041
CM82: 9 | CN82: D4O21W1IBUB3HEML1KWP5YGOP | CO82: D4O21W1IBUEXWI9DNA2RI3G1L | CP82: Grade 8 F/T | CQ82: 0007 | CS82: S | CU82: L | DG82: 8 | DH82: 0ORGUNIT | DI82: 0BBPPURGRPX | DJ82: Ind.Purchasing Group | DK82: 0000 | DL82: X | DM82: 2 | DN82: 0 | DO82: 0 | DT82: 0000 | EA82: 11 | EB82: DEN9FTLAHQ484THKU6JCGFTA1 | EC82: DA5GNUVDNUSS0I3R190AYAR5L | EE82: 0 | EI82: 00 | EJ82: X | EK82: 0 | EL82: 0 | HW82: 9 | HX82: 0000000042 | HY82: 0
CM83: 9 | CN83: D4O21W1IBUB3HEML1KWP5YGOP | CO83: D4O21W1IBULV2377J4ZA3Y0HL | CP83: Grade 8 P/T | CQ83: 0008 | CS83: S | CU83: L | DG83: 8 | DH83: 0ORGUNIT | DI83: 0BBPPURORGX | DJ83: Ind. Purchasing Org. | DK83: 0000 | DL83: X | DM83: 2 | DN83: 0 | DO83: 0 | DT83: 0000 | EA83: 11 | EB83: DEN9FTLAHQ484THKU6JCGFTA1 | EC83: DA5GNUVDNUTJP4FICSFX0Q5FD | EE83: 0 | EI83: 00 | EJ83: X | EK83: 0 | EL83: 0 | HW83: 9 | HX83: 0000000043 | HY83: 0
CM84: 9 | CN84: D4O21W1IBUB3HEML1KWP5YGOP | CO84: D4O21W1IBV18QHQDXXNJGHXX5 | CP84: Grade 8 Total | CQ84: 0009 | CS84: S | CU84: L | DG84: 8 | DH84: 0ORGUNIT | DI84: 0BBP_BUYID | DJ84: Buyer ID | DK84: 0000 | DL84: X | DM84: 5 | DN84: 0 | DO84: 0 | DT84: 0000 | EA84: 11 | EB84: DEN9FTLAHQ484THKU6JCGFTA1 | EC84: DA5GNUVDNUUBDQR9OBVJ35JP5 | EE84: 0 | EI84: 00 | EJ84: X | EK84: 0 | EL84: 0 | HW84: 9 | HX84: 0000000109 | HY84: 0
CM85: 9 | CN85: D4O21W1IBUB3HEML1KWP5YGOP | CO85: D4O21W1IBUFPL4L4YTIDKIUBD | CP85: ACZ Grade 8 F/T | CQ85: 0010 | CS85: S | CU85: L | DG85: 8 | DH85: 0ORGUNIT | DI85: 0BBP_ISCOMP | DJ85: Organizational Unit is Company | DK85: 0000 | DL85: X | DM85: 1 | DN85: 0 | DO85: 0 | DT85: 0000 | EA85: 11 | EB85: DEN9FTLAHQ484THKU6JCGFTA1 | EC85: DA5GNUVDNUV32D30ZVB55KXYX | EE85: 0 | EI85: 00 | EJ85: X | EK85: 0 | EL85: 0 | HW85: 9 | HX85: 0000000113
CM86: 9 | CN86: D4O21W1IBUB3HEML1KWP5YGOP | CO86: D4O21W1IBUMMQPIYUOEW6DERD | CP86: ACZ Grade 8 P/T | CQ86: 0011 | CS86: S | CU86: L | DG86: 8 | DH86: 0ORGUNIT | DI86: 0BUS_AREA | DJ86: Business area | DK86: 0000 | DL86: X | DM86: 0 | DN86: 0 | DO86: 0 | DT86: 0000 | EA86: 11 | EB86: DEN9FTLAHQ484THKU6JCGFTA1 | EC86: DA5GNUVDNUVUQZESBEQR80C8P | EE86: 0 | EI86: 00 | EJ86: X | EK86: 0 | EL86: 0 | HW86: 9 | HX86: 0000000120
CM87: 9 | CN87: D4O21W1IBUB3HEML1KWP5YGOP | CO87: D4O21W1IBV0H1VEMME7XE2JND | CP87: ACZ Grade 8 Total | CQ87: 0012 | CS87: S | CU87: L | DG87: 8 | DH87: 0ORGUNIT | DI87: 0COMP_CODE | DJ87: Company code | DK87: 0000 | DL87: X | DM87: 0 | DN87: 0 | DO87: 0 | DT87: 0000 | EA87: 11 | EB87: DEN9FTLAHQ484THKU6JCGFTA1 | EC87: DA5GNUVDNUWMFLQJMY6DAFQIH | EE87: 0 | EI87: 00 | EJ87: X | EK87: 0 | EL87: 0 | HW87: 9 | HX87: 0000000121
CM88: 9 | CN88: D4O21W1IBUB3HEML1KWP5YGOP | CO88: D4O21W1IBUH8YD8NLWDLPDMUX | CP88: Grade 9 - 15 F/T | CQ88: 0013 | CS88: S | CU88: L | DG88: 8 | DH88: 0ORGUNIT | DI88: 0CO_MST_AR | DJ88: Controlling Area of Master Cost Center | DK88: 0000 | DL88: X | DM88: 0 | DN88: 0 | DO88: 0 | DT88: 0000 | EA88: 11 | EB88: DEN9GQ7MCHA8Y0DFMMJUL514P | EC88: DA5GNUVDNUSS0I3R190AYAR5L | EI88: 00 | EJ88: X | EK88: 0 | EL88: 0 | HW88: 9 | HX88: 0000010001 | HY88: DA5GMC5Q7C0P8X8EGK6XEOEM1
CM89: 9 | CN89: D4O21W1IBUB3HEML1KWP5YGOP | CO89: DEN03PYIT5FSSAA2U7ST53H15 | CP89: Grade 9 - 15 P/T | CQ89: 0014 | CS89: S | CU89: L | DG89: 8 | DH89: 0ORGUNIT | DI89: 0CRMSALGRPX | DJ89: Sls Group: Indicator | DK89: 0000 | DL89: X | DM89: 2 | DN89: 0 | DO89: 0 | DT89: 0000 | EA89: 11 | EB89: DEN9GQ7MCHA8Y0DFMMJUL514P | EC89: DA5GNUVDNUTJP4FICSFX0Q5FD | EI89: 00 | EJ89: X | EK89: 0 | EL89: 0 | HW89: 9 | HX89: 0000010002 | HY89: DA5GMC5Q7BOEB009BX94BU29L
CM90: 9 | CN90: D4O21W1IBUB3HEML1KWP5YGOP | CO90: D4O21W1IBUO63Y6HHRA4B87AX | CP90: Grade 9 - 15 Total | CQ90: 0015 | CS90: S | CU90: L | DG90: 8 | DH90: 0ORGUNIT | DI90: 0CRMSALOFFX | DJ90: Sls Office:Indicator | DK90: 0000 | DL90: X | DM90: 2 | DN90: 0 | DO90: 0 | DT90: 0000 | EA90: 11 | EB90: DEN9GQ7MCHA8Y0DFMMJUL514P | EC90: DA5GNUVDNUUBDQR9OBVJ35JP5 | EI90: 00 | EJ90: X | EK90: 0 | EL90: 0 | HW90: 9 | HX90: 0000000105
CM91: 9 | CN91: D4O21W1IBUB3HEML1KWP5YGOP | CO91: D4O21W1IBUGH9QWWACXZMY8L5 | CP91: ACZ Grade 9 - 15 F/T | CQ91: 0016 | CS91: S | CU91: L | DG91: 8 | DH91: 0ORGUNIT | DI91: 0CRMSALORGX | DJ91: Sales Org. Indicator | DK91: 0000 | DL91: X | DM91: 2 | DN91: 0 | DO91: 0 | DT91: 0000 | EA91: 11 | EB91: DEN9GQ7MCHA8Y0DFMMJUL514P | EC91: DA5GNUVDNUV32D30ZVB55KXYX | EI91: 00 | EJ91: X | EK91: 0 | EL91: 0 | HW91: 9 | HX91: 0000000106
CM92: 9 | CN92: D4O21W1IBUB3HEML1KWP5YGOP | CO92: D4O21W1IBUNEFBUQ67UI8ST15 | CP92: ACZ Grade 9 - 15 P/T | CQ92: 0017 | CS92: S | CU92: L | DG92: 8 | DH92: 0ORGUNIT | DI92: 0CRMSRVTGRP | DJ92: Ex. CRM Service Org. | DK92: 0000 | DL92: X | DM92: 1 | DN92: 0 | DO92: 0 | DT92: 0000 | EA92: 11 | EB92: DEN9GQ7MCHA8Y0DFMMJUL514P | EC92: DA5GNUVDNUVUQZESBEQR80C8P | EI92: 00 | EJ92: X | EK92: 0 | EL92: 0 | HW92: 9 | HX92: 0000000112 | HY92: 0
CM93: 9 | CN93: D4O21W1IBUB3HEML1KWP5YGOP | CO93: DEN04FDC1K04NBJW47LA7T915 | CP93: ACZ Grade 9 - 15 Total | CQ93: 0018 | CS93: S | CU93: L | DG93: 8 | DH93: 0ORGUNIT | DI93: 0CRM_SALGRP | DJ93: CRM Sales Group | DK93: 0000 | DL93: X | DM93: 1 | DN93: 0 | DO93: 0 | DT93: 0000 | EA93: 11 | EB93: DEN9GQ7MCHA8Y0DFMMJUL514P | EC93: DA5GNUVDNUWMFLQJMY6DAFQIH | EI93: 00 | EJ93: X | EK93: 0 | EL93: 0 | HW93: 9 | HX93: 0000000200 | HY93: X
CM94: 9 | CN94: D4O21W1IBUB3HEML1KWP5YGOP | CO94: D4O21W1IBUWMMRRU0P1V1XKAH | CP94: Other (Not Migrated) F/T | CQ94: 0019 | CS94: F | CU94: L | DG94: 8 | DH94: 0ORGUNIT | DI94: 0CRM_SALOFF | DJ94: CRM Sales Office | DK94: 0000 | DL94: X | DM94: 1 | DN94: 0 | DO94: 0 | DT94: 0000 | EA94: 11 | EB94: DEN9GQ7MCHB0MMP6Y5ZGNKFEH | EC94: DA5GNUVDNUSS0I3R190AYAR5L | EI94: 00 | EJ94: X | EK94: 0 | EL94: 0 | HW94: 9 | HX94: 0000004000 | HY94: X
CM95: 9 | CN95: D4O21W1IBUB3HEML1KWP5YGOP | CO95: DEN07Y1DTSNAWTLQYCBLILED5 | CP95: Other (Not Migrated) P/T | CQ95: 0020 | CS95: F | CU95: L | DG95: 8 | DH95: 0ORGUNIT | DI95: 0CRM_SALORG | DJ95: CRM Sales Org. | DK95: 0000 | DL95: X | DM95: 1 | DN95: 0 | DO95: 0 | DT95: 0000 | EA95: 11 | EB95: DEN9GQ7MCHB0MMP6Y5ZGNKFEH | EC95: DA5GNUVDNUTJP4FICSFX0Q5FD | EI95: 00 | EJ95: X | EK95: 0 | EL95: 0 | HW95: 9 | HX95: 0000009001 | HY95: Workforce Profile Sexual Orientation (2011) Revised
CM96: 9 | CN96: D4O21W1IBUB3HEML1KWP5YGOP | CO96: DEN07Y1DTSPLYOL0WYMFPVL6H | CP96: Other (Not Migrated) Total | CQ96: 0021 | CS96: F | CU96: L | DG96: 8 | DH96: 0ORGUNIT | DI96: 0CRM_SRVORG | DJ96: Service Org. CRM | DK96: 0000 | DL96: X | DM96: 1 | DN96: 0 | DO96: 0 | DT96: 0000 | EA96: 11 | EB96: DEN9GQ7MCHB0MMP6Y5ZGNKFEH | EC96: DA5GNUVDNUUBDQR9OBVJ35JP5 | EI96: 00 | EJ96: X | EK96: 0 | EL96: 0 | HW96: 9 | HX96: 0000000114 | HY96: 1
CM97: 9 | CN97: D4O21W1IBUB3HEML1KWP5YGOP | CO97: D4O21W1IBUY600FCNRX36SCU1 | CP97: Total Teaching Staff F/T | CQ97: 0022 | CS97: S | CU97: L | DG97: 8 | DH97: 0ORGUNIT | DI97: 0LOGSYS | DJ97: Source System | DK97: 0000 | DL97: X | DM97: 1 | DN97: 0 | DO97: 0 | DT97: 0000 | EA97: 11 | EB97: DEN9GQ7MCHB0MMP6Y5ZGNKFEH | EC97: DA5GNUVDNUV32D30ZVB55KXYX | EI97: 00 | EJ97: X | EK97: 0 | EL97: 0 | HW97: 8 | HX97: 0000000107 | HY97: DA5GMC5Q7BOEB009BX94BU29L
CM98: 9 | CN98: D4O21W1IBUB3HEML1KWP5YGOP | CO98: DEN0OSIFULCZTDTFE8U7RBQIH | CP98: Total Teaching Staff P/T | CQ98: 0023 | CS98: S | CU98: L | DG98: 8 | DH98: 0ORGUNIT | DI98: 0MAST_CCTR | DJ98: Master Cost Center | DK98: 0000 | DL98: X | DM98: 0 | DN98: 0 | DO98: 0 | DT98: 0000 | EA98: 11 | EB98: DEN9GQ7MCHB0MMP6Y5ZGNKFEH | EC98: DA5GNUVDNUVUQZESBEQR80C8P | EI98: 00 | EJ98: X | EK98: 0 | EL98: 0 | HW98: 8 | HX98: 0000000100 | HY98: X
CM99: 9 | CN99: D4O21W1IBUB3HEML1KWP5YGOP | CO99: DEN0OSIFULDRI056PS9TTR4S9 | CP99: Total Teaching Staff | CQ99: 0024 | CS99: S | CU99: L | DG99: 8 | DH99: 0ORGUNIT | DI99: 0PERS_AREA | DJ99: Personnel Area | DK99: 0000 | DL99: X | DM99: 1 | DN99: 0 | DO99: 0 | DT99: 0000 | EA99: 11 | EB99: DEN9GQ7MCHB0MMP6Y5ZGNKFEH | EC99: DA5GNUVDNUWMFLQJMY6DAFQIH | EI99: 00 | EJ99: X | EK99: 0 | EL99: 0 | HW99: 8 | HX99: 0000000101
CM100: 9 | CN100: D4O21W1IBUB3HEML1KWP5YGOP | CO100: DEN0OSIFULEJ6MGY1BPFW6J21 | CP100: Total Non-Teaching Staff F/T | CQ100: 0025 | CS100: S | CU100: L | DG100: 8 | DH100: 0ORGUNIT | DI100: 0PERS_SAREA | DJ100: Personnel Subarea | DK100: 0000 | DL100: X | DM100: 1 | DN100: 0 | DO100: 0 | DT100: 0000 | EA100: 11 | EB100: DEN9GQ7MCHBSB90Y9PF2PZTO9 | EC100: DA5GNUVDNUSS0I3R190AYAR5L | EI100: 00 | EJ100: X | EK100: 0 | EL100: 0 | HW100: 8 | HX100: 0000000104 | HY100: 1
CM101: 9 | CN101: D4O21W1IBUB3HEML1KWP5YGOP | CO101: DEN07Y1DTSOUA299LF6TNG6WP | CP101: Total Non-Teaching Staff P/T | CQ101: 0026 | CS101: S | CU101: L | DG101: 8 | DH101: 0ORGUNIT | DI101: 0PLANT | DJ101: Plant | DK101: 0000 | DL101: X | DM101: 0 | DN101: 0 | DO101: 0 | DT101: 0000 | EA101: 11 | EB101: DEN9GQ7MCHBSB90Y9PF2PZTO9 | EC101: DA5GNUVDNUTJP4FICSFX0Q5FD | EI101: 00 | EJ101: X | EK101: 0 | EL101: 0 | HW101: 8 | HX101: 0000000103
CM102: 9 | CN102: D4O21W1IBUB3HEML1KWP5YGOP | CO102: DEN07Y1DTSR5BX8JK1HNUQDQ1 | CP102: Total Non-Teaching Staff | CQ102: 0027 | CS102: S | CU102: L | DG102: 8 | DH102: 0ORGUNIT | DI102: 0PURCH_ORG | DJ102: Purchasing org. | DK102: 0000 | DL102: X | DM102: 0 | DN102: 0 | DO102: 0 | DT102: 0000 | EA102: 11 | EB102: DEN9GQ7MCHBSB90Y9PF2PZTO9 | EC102: DA5GNUVDNUUBDQR9OBVJ35JP5 | EI102: 00 | EJ102: X | EK102: 0 | EL102: 0 | HW102: 8 | HX102: 0000000102 | HY102: 1
CM103: 9 | CN103: D4O21W1IBUB3HEML1KWP5YGOP | CO103: D4O21W1IBUXEBE3LC8HH4CYK9 | CP103: Total - All WPBR Grades F/T | CQ103: 0028 | CS103: F | CU103: L | DG103: 8 | DH103: 0ORGUNIT | DI103: 0PUR_GROUP | DJ103: Purchasing group | DK103: 0000 | DL103: X | DM103: 0 | DN103: 0 | DO103: 0 | DT103: 0000 | EA103: 11 | EB103: DEN9GQ7MCHBSB90Y9PF2PZTO9 | EC103: DA5GNUVDNUV32D30ZVB55KXYX | EI103: 00 | EJ103: X | EK103: 0 | EL103: 0 | HW103: 8 | HX103: 0000000108
CM104: 9 | CN104: D4O21W1IBUB3HEML1KWP5YGOP | CO104: DEN07Y1DTSO2LFXI9VR7L0SMX | CP104: Total - All WPBR Grades P/T | CQ104: 0029 | CS104: F | CU104: L | DG104: 8 | DH104: 0ORGUNIT | DI104: 0SALESORG | DJ104: Sales Organization | DK104: 0000 | DL104: X | DM104: 0 | DN104: 0 | DO104: 0 | DT104: 0000 | EA104: 11 | EB104: DEN9GQ7MCHBSB90Y9PF2PZTO9 | EC104: DA5GNUVDNUVUQZESBEQR80C8P | EI104: 00 | EJ104: X | EK104: 0 | EL104: 0 | HW104: 8 | HX104: 0000009002 | HY104: D4O21W1IBUB3HEML1KWP5YGOP
CM105: 9 | CN105: D4O21W1IBUB3HEML1KWP5YGOP | CO105: DEN07Y1DTSQDNAWS8I21SAZG9 | CP105: Total Workforce - All WPBR Grades | CQ105: 0030 | CS105: F | CU105: L | DG105: 8 | DH105: 0ORGUNIT | DI105: 0SALES_GRP | DJ105: Sales group | DK105: 0000 | DL105: X | DM105: 0 | DN105: 0 | DO105: 0 | DT105: 0000 | EA105: 11 | EB105: DEN9GQ7MCHBSB90Y9PF2PZTO9 | EC105: DA5GNUVDNUWMFLQJMY6DAFQIH | EI105: 00 | EJ105: X | EK105: 0 | EL105: 0 | HW105: 8 | HX105: 0000009000
CM106: 9 | CN106: D4O21W1IBUB3HEML1KWP5YGOP | CO106: D4O21W1IBV8XKOZZ5BZO4RWMX | CP106: Total Workforce (All) F/T | CQ106: 0031 | CS106: S | CU106: L | DG106: 8 | DH106: 0ORGUNIT | DI106: 0SALES_OFF | DJ106: Sales Office | DK106: 0000 | DL106: X | DM106: 0 | DN106: 0 | DO106: 0 | DT106: 0000 | EA106: 11 | EB106: DEN9GQ7MCHCJZVCPL8UOSF7Y1 | EC106: DA5GNUVDNUSS0I3R190AYAR5L | EI106: 00 | EJ106: X | EK106: 0 | EL106: 0 | HW106: 8 | HX106: 0000000010
CM107: 9 | CN107: D4O21W1IBUB3HEML1KWP5YGOP | CO107: DEN07Y1DTSRX0JKAVKX9X5RZT | CP107: Total Workforce (All) P/T | CQ107: 0032 | CS107: S | CU107: L | DG107: 8 | DH107: 0CNTRCTTYPE | DI107: 0CNTRCTISFT | DJ107: Fixed-Term Contract | DK107: 0000 | DL107: X | DM107: 2 | DN107: 0 | DO107: 0 | DT107: 0000 | EA107: 11 | EB107: DEN9GQ7MCHCJZVCPL8UOSF7Y1 | EC107: DA5GNUVDNUTJP4FICSFX0Q5FD | EI107: 00 | EJ107: X | EK107: 0 | EL107: 0 | HW107: 8 | HX107: 0000000021
CM108: 9 | CN108: D4O21W1IBUB3HEML1KWP5YGOP | CO108: DEN07Y1DTSSOP5W274CVZL69L | CP108: Total Workforce (All) | CQ108: 0033 | CS108: S | CU108: L | DG108: 7 | DH108: 0ORGUNIT | DI108: 0BBPPURGRPX | DJ108: Ind.Purchasing Group | DK108: 0000 | DL108: X | DM108: 2 | DN108: 0 | DO108: 0 | DT108: 0000 | EA108: 11 | EB108: DEN9GQ7MCHCJZVCPL8UOSF7Y1 | EC108: DA5GNUVDNUUBDQR9OBVJ35JP5 | EI108: 00 | EJ108: X | EK108: 0 | EL108: 0 | HW108: 8 | HX108: 0000000022
CM109: 8 | CN109: D4O21W1IBUB3HEML1KWP5YGOP | CO109: D4O21W1IBUDEJ9LV077JD8NI1 | CP109: Grade 1 - 4 F/T | CQ109: 0001 | CS109: S | CU109: L | DG109: 7 | DH109: 0ORGUNIT | DI109: 0BBPPURORGX | DJ109: Ind. Purchasing Org. | DK109: 0000 | DL109: X | DM109: 2 | DN109: 0 | DO109: 0 | DT109: 0000 | EA109: 11 | EB109: DEN9GQ7MCHCJZVCPL8UOSF7Y1 | EC109: DA5GNUVDNUV32D30ZVB55KXYX | EI109: 00 | EJ109: X | EK109: 0 | EL109: 0 | HW109: 8 | HX109: 0000000023
CM110: 8 | CN110: DA5GNUVDNUS0BVRZPPKOVVCVT | CO110: DA5GNUVDNUSS0I3R190AYAR5L | CP110: Bi-Sexual | CQ110: 0001 | CS110: S | CU110: L | CV110: X | DG110: 7 | DH110: 0ORGUNIT | DI110: 0BBP_BUYID | DJ110: Buyer ID | DK110: 0000 | DL110: X | DM110: 5 | DN110: 0 | DO110: 0 | DT110: 0000 | EA110: 11 | EB110: DEN9GQ7MCHCJZVCPL8UOSF7Y1 | EC110: DA5GNUVDNUVUQZESBEQR80C8P | EI110: 00 | EJ110: X | EK110: 0 | EL110: 0 | HW110: 8 | HX110: 0000000030
CM111: 8 | CN111: DA5GNUVDNUS0BVRZPPKOVVCVT | CO111: DA5GNUVDNUTJP4FICSFX0Q5FD | CP111: Heterosexual | CQ111: 0002 | CS111: S | CU111: L | CV111: X | DG111: 7 | DH111: 0ORGUNIT | DI111: 0BBP_ISCOMP | DJ111: Organizational Unit is Company | DK111: 0000 | DL111: X | DM111: 1 | DN111: 0 | DO111: 0 | DT111: 0000 | EA111: 11 | EB111: DEN9GQ7MCHCJZVCPL8UOSF7Y1 | EC111: DA5GNUVDNUWMFLQJMY6DAFQIH | EI111: 00 | EJ111: X | EK111: 0 | EL111: 0 | HW111: 8 | HX111: 0000000040
CM112: 8 | CN112: D4O21W1IBUB3HEML1KWP5YGOP | CO112: D4O21W1IBUKBOUJOW241Z37Y1 | CP112: Grade 1 - 4 P/T | CQ112: 0002 | CS112: S | CU112: L | DG112: 7 | DH112: 0ORGUNIT | DI112: 0BUS_AREA | DJ112: Business area | DK112: 0000 | DL112: X | DM112: 0 | DN112: 0 | DO112: 0 | DT112: 0000 | EA112: 11 | EB112: DEN9GQ7MCHDBOHOGWSAAUUM7T | EC112: DA5GNUVDNUSS0I3R190AYAR5L | EI112: 00 | EJ112: X | EK112: 0 | EL112: 0 | HW112: 8 | HX112: 0000000041
CM113: 8 | CN113: DA5GNUVDNUS0BVRZPPKOVVCVT | CO113: DA5GNUVDNUUBDQR9OBVJ35JP5 | CP113: Lesbian/Gay | CQ113: 0003 | CS113: S | CU113: L | CV113: X | DG113: 7 | DH113: 0ORGUNIT | DI113: 0COMP_CODE | DJ113: Company code | DK113: 0000 | DL113: X | DM113: 0 | DN113: 0 | DO113: 0 | DT113: 0000 | EA113: 11 | EB113: DEN9GQ7MCHDBOHOGWSAAUUM7T | EC113: DA5GNUVDNUTJP4FICSFX0Q5FD | EI113: 00 | EJ113: X | EK113: 0 | EL113: 0 | HW113: 8 | HX113: 0000000042 | HY113: 0
CM114: 8 | CN114: D4O21W1IBUB3HEML1KWP5YGOP | CO114: DEMAFDB5LZ4S252XBVM7GJP4P | CP114: Grade 1 - 4 Total | CQ114: 0003 | CS114: S | CU114: L | DG114: 7 | DH114: 0ORGUNIT | DI114: 0CO_MST_AR | DJ114: Controlling Area of Master Cost Center | DK114: 0000 | DL114: X | DM114: 0 | DN114: 0 | DO114: 0 | DT114: 0000 | EA114: 11 | EB114: DEN9GQ7MCHDBOHOGWSAAUUM7T | EC114: DA5GNUVDNUUBDQR9OBVJ35JP5 | EI114: 00 | EJ114: X | EK114: 0 | EL114: 0 | HW114: 8 | HX114: 0000000043 | HY114: 0
CM115: 8 | CN115: DA5GNUVDNUS0BVRZPPKOVVCVT | CO115: DA5GNUVDNUV32D30ZVB55KXYX | CP115: Transgender | CQ115: 0004 | CS115: S | CU115: L | CV115: X | DG115: 7 | DH115: 0ORGUNIT | DI115: 0CRMSALGRPX | DJ115: Sls Group: Indicator | DK115: 0000 | DL115: X | DM115: 2 | DN115: 0 | DO115: 0 | DT115: 0000 | EA115: 11 | EB115: DEN9GQ7MCHDBOHOGWSAAUUM7T | EC115: DA5GNUVDNUV32D30ZVB55KXYX | EI115: 00 | EJ115: X | EK115: 0 | EL115: 0 | HW115: 8 | HX115: 0000000109 | HY115: 0
CM116: 8 | CN116: D4O21W1IBUB3HEML1KWP5YGOP | CO116: D4O21W1IBUE67VXMBQN5FO1RT | CP116: Grade 5 - 7 F/T | CQ116: 0004 | CS116: S | CU116: L | DG116: 7 | DH116: 0ORGUNIT | DI116: 0CRMSALOFFX | DJ116: Sls Office:Indicator | DK116: 0000 | DL116: X | DM116: 2 | DN116: 0 | DO116: 0 | DT116: 0000 | EA116: 11 | EB116: DEN9GQ7MCHDBOHOGWSAAUUM7T | EC116: DA5GNUVDNUVUQZESBEQR80C8P | EI116: 00 | EJ116: X | EK116: 0 | EL116: 0 | HW116: 8 | HX116: 0000000113
CM117: 8 | CN117: D4O21W1IBUB3HEML1KWP5YGOP | CO117: D4O21W1IBUL3DGVG7LJO1IM7T | CP117: Grade 5 - 7 P/T | CQ117: 0005 | CS117: S | CU117: L | DG117: 7 | DH117: 0ORGUNIT | DI117: 0CRMSALORGX | DJ117: Sales Org. Indicator | DK117: 0000 | DL117: X | DM117: 2 | DN117: 0 | DO117: 0 | DT117: 0000 | EA117: 11 | EB117: DEN9GQ7MCHDBOHOGWSAAUUM7T | EC117: DA5GNUVDNUWMFLQJMY6DAFQIH | EI117: 00 | EJ117: X | EK117: 0 | EL117: 0 | HW117: 8 | HX117: 0000000120
CM118: 8 | CN118: DA5GNUVDNUS0BVRZPPKOVVCVT | CO118: DA5GNUVDNUVUQZESBEQR80C8P | CP118: Other | CQ118: 0005 | CS118: S | CU118: L | CV118: X | DG118: 7 | DH118: 0ORGUNIT | DI118: 0CRMSRVTGRP | DJ118: Ex. CRM Service Org. | DK118: 0000 | DL118: X | DM118: 1 | DN118: 0 | DO118: 0 | DT118: 0000 | EA118: 11 | EB118: DEN9GQ7MCHE3D4088BPWXA0HL | EC118: DA5GNUVDNUSS0I3R190AYAR5L | EI118: 00 | EJ118: X | EK118: 0 | EL118: 0 | HW118: 8 | HX118: 0000000121
CM119: 8 | CN119: DA5GNUVDNUS0BVRZPPKOVVCVT | CO119: DA5GNUVDNUWMFLQJMY6DAFQIH | CP119: Not Disclosed | CQ119: 0006 | CS119: S | CU119: L | CV119: X | DG119: 7 | DH119: 0ORGUNIT | DI119: 0CRM_SALGRP | DJ119: CRM Sales Group | DK119: 0000 | DL119: X | DM119: 1 | DN119: 0 | DO119: 0 | DT119: 0000 | EA119: 11 | EB119: DEN9GQ7MCHE3D4088BPWXA0HL | EC119: DA5GNUVDNUTJP4FICSFX0Q5FD | EI119: 00 | EJ119: X | EK119: 0 | EL119: 0 | HW119: 8 | HX119: 0000010001 | HY119: DA5GMC5Q7C0P8X8EGK6XEOEM1
CM120: 8 | CN120: D4O21W1IBUB3HEML1KWP5YGOP | CO120: DEMAGSP8VDTMCQ2Z9KSRG7UGP | CP120: Grade 5 - 7 Total | CQ120: 0006 | CS120: S | CU120: L | DG120: 7 | DH120: 0ORGUNIT | DI120: 0CRM_SALOFF | DJ120: CRM Sales Office | DK120: 0000 | DL120: X | DM120: 1 | DN120: 0 | DO120: 0 | DT120: 0000 | EA120: 11 | EB120: DEN9GQ7MCHE3D4088BPWXA0HL | EC120: DA5GNUVDNUUBDQR9OBVJ35JP5 | EI120: 00 | EJ120: X | EK120: 0 | EL120: 0 | HW120: 8 | HX120: 0000010002 | HY120: DA5GMC5Q7BOEB009BX94BU29L
CM121: 8 | CN121: D4O21W1IBUB3HEML1KWP5YGOP | CO121: D4O21W1IBUEXWI9DNA2RI3G1L | CP121: Grade 8 F/T | CQ121: 0007 | CS121: S | CU121: L | DG121: 7 | DH121: 0ORGUNIT | DI121: 0CRM_SALORG | DJ121: CRM Sales Org. | DK121: 0000 | DL121: X | DM121: 1 | DN121: 0 | DO121: 0 | DT121: 0000 | EA121: 11 | EB121: DEN9GQ7MCHE3D4088BPWXA0HL | EC121: DA5GNUVDNUV32D30ZVB55KXYX | EI121: 00 | EJ121: X | EK121: 0 | EL121: 0 | HW121: 8 | HX121: 0000000105
CM122: 8 | CN122: D4O21W1IBUB3HEML1KWP5YGOP | CO122: D4O21W1IBULV2377J4ZA3Y0HL | CP122: Grade 8 P/T | CQ122: 0008 | CS122: S | CU122: L | DG122: 7 | DH122: 0ORGUNIT | DI122: 0CRM_SRVORG | DJ122: Service Org. CRM | DK122: 0000 | DL122: X | DM122: 1 | DN122: 0 | DO122: 0 | DT122: 0000 | EA122: 11 | EB122: DEN9GQ7MCHE3D4088BPWXA0HL | EC122: DA5GNUVDNUVUQZESBEQR80C8P | EI122: 00 | EJ122: X | EK122: 0 | EL122: 0 | HW122: 8 | HX122: 0000000106
CM123: 8 | CN123: D4O21W1IBUB3HEML1KWP5YGOP | CO123: D4O21W1IBV18QHQDXXNJGHXX5 | CP123: Grade 8 Total | CQ123: 0009 | CS123: S | CU123: L | DG123: 7 | DH123: 0ORGUNIT | DI123: 0LOGSYS | DJ123: Source System | DK123: 0000 | DL123: X | DM123: 1 | DN123: 0 | DO123: 0 | DT123: 0000 | EA123: 11 | EB123: DEN9GQ7MCHE3D4088BPWXA0HL | EC123: DA5GNUVDNUWMFLQJMY6DAFQIH | EI123: 00 | EJ123: X | EK123: 0 | EL123: 0 | HW123: 8 | HX123: 0000000112 | HY123: 0
CM124: 8 | CN124: D4O21W1IBUB3HEML1KWP5YGOP | CO124: D4O21W1IBUFPL4L4YTIDKIUBD | CP124: ACZ Grade 8 F/T | CQ124: 0010 | CS124: S | CU124: L | DG124: 7 | DH124: 0ORGUNIT | DI124: 0MAST_CCTR | DJ124: Master Cost Center | DK124: 0000 | DL124: X | DM124: 0 | DN124: 0 | DO124: 0 | DT124: 0000 | EA124: 11 | EB124: DEN9GQ7MCHEV1QBZJV5IZPERD | EC124: DA5GNUVDNUSS0I3R190AYAR5L | EE124: 0 | EI124: 00 | EJ124: X | EK124: 0 | EL124: 0 | HW124: 8 | HX124: 0000000200 | HY124: X
CM125: 8 | CN125: D4O21W1IBUB3HEML1KWP5YGOP | CO125: D4O21W1IBUMMQPIYUOEW6DERD | CP125: ACZ Grade 8 P/T | CQ125: 0011 | CS125: S | CU125: L | DG125: 7 | DH125: 0ORGUNIT | DI125: 0PERS_AREA | DJ125: Personnel Area | DK125: 0000 | DL125: X | DM125: 1 | DN125: 0 | DO125: 0 | DT125: 0000 | EA125: 11 | EB125: DEN9GQ7MCHEV1QBZJV5IZPERD | EC125: DA5GNUVDNUTJP4FICSFX0Q5FD | EE125: 0 | EI125: 00 | EJ125: X | EK125: 0 | EL125: 0 | HW125: 8 | HX125: 0000004000 | HY125: X
... 156 more rows

Sheet SAPBEXfiltersDefunct (hidden)
CW2: 0 | EZ2: 7 | GX2: 10
CW3: 8 | EZ3: 12 | GX3: 31
EZ4: 10 | FA4: DKYHVMZOKY4504JAE8431CHRT | FC4: X | FD4: 3 | FE4: 0 | FF4: ZPERSAREA | FI4: 0 | GX4: 10 | GY4: DKYHVMZOKY4504JAE8431CHRT | HB4: 0001 | HC4: 0001 | HD4: 0 | HE4: 0000 | HF4: I | HG4: EQ | HH4: 0051 | HJ4: 0051 | HL4: 1 | HN4: 0 | HP4: Education | HU4: 0 | HX4: 0 | HZ4: 0 | IC4: 00
EZ5: 9 | FA5: DKYHVMZOKYLTQE1QRN36L6M0P | FC5: X | FD5: 3 | FE5: 0 | FF5: 0ORGUNIT | FI5: 0 | GX5: 9 | GY5: DKYHVMZOKYLTQE1QRN36L6M0P | HB5: 0001 | HC5: 0001 | HD5: 0 | HE5: 0000 | HF5: I | HG5: EQ | HH5: 50004878 | HJ5: 50004878 | HL5: 1 | HN5: 0 | HP5: Chief Executive Srv | HU5: 0 | HX5: 0 | HZ5: 0 | IC5: 00
EZ6: 8 | FA6: DKYHVMZOKZ1Z3EWOHZ7205XQ1 | FC6: X | FD6: 3 | FE6: 0 | FF6: 0ORGUNIT | FI6: 0 | GX6: 9 | GY6: DKYHVMZOKYLTQE1QRN36L6M0P | HB6: 0002 | HC6: 0001 | HD6: 0 | HE6: 0000 | HF6: I | HG6: EQ | HH6: 50004879 | HI6: 0ORGUNIT | HJ6: 50004879 | HL6: 1 | HN6: 4 | HP6: Chief Executive Organisation Structure | HT6: ORGEH | HU6: 1 | HW6: 000 | HX6: 1 | HY6: 20150930 | HZ6: 1 | IC6: 00
EZ7: 7 | FA7: DKYHVOE8A2I0P9UW7R37R4MIH | FC7: X | FD7: 3 | FE7: 0 | FF7: ZPERSAREA | FI7: 0 | GX7: 9 | GY7: DKYHVMZOKYLTQE1QRN36L6M0P | HB7: 0003 | HC7: 0001 | HD7: 0 | HE7: 0000 | HF7: I | HG7: EQ | HH7: 50004939 | HI7: 0ORGUNIT | HJ7: 50004939 | HL7: 1 | HN7: 4 | HP7: Communication & Organisation Development | HT7: ORGEH | HU7: 1 | HW7: 000 | HX7: 1 | HY7: 20150930 | HZ7: 1 | IC7: 00
EZ8: 6 | FA8: DKYHVOE8A2Y62APTY37363Y7T | FC8: X | FD8: 3 | FE8: 0 | FF8: ZPERSAREA | FI8: 0 | GX8: 9 | GY8: DKYHVMZOKYLTQE1QRN36L6M0P | HB8: 0004 | HC8: 0001 | HD8: 0 | HE8: 0000 | HF8: I | HG8: EQ | HH8: 50258124 | HI8: 0ORGUNIT | HJ8: 50258124 | HL8: 1 | HN8: 4 | HP8: CE Corporate Policy | HT8: ORGEH | HU8: 1 | HW8: 000 | HX8: 1 | HY8: 20150930 | HZ8: 1 | IC8: 00
EZ9: 5 | FA9: DKYHVOE8A3EBFBKROFAYL39X5 | FC9: X | FD9: 3 | FE9: 0 | FF9: ZPERSAREA | FI9: 0 | GX9: 8 | GY9: DKYHVMZOKZ1Z3EWOHZ7205XQ1 | HB9: 0001 | HC9: 0001 | HD9: 0 | HE9: 0000 | HF9: I | HG9: EQ | HH9: 50004880 | HI9: 0ORGUNIT | HJ9: 50004880 | HL9: 1 | HN9: 4 | HP9: Corporate Services | HT9: ORGEH | HU9: 1 | HW9: 000 | HX9: 1 | HY9: 20150930 | HZ9: 1 | IC9: 00
EZ10: 4 | FA10: DKYHVPQUQZULPFJJFF5CQ0U0P | FC10: X | FD10: 3 | FE10: 0 | FF10: ZPERSAREA | FI10: 0 | GX10: 7 | GY10: DKYHVOE8A2I0P9UW7R37R4MIH | HB10: 0001 | HC10: 0001 | HD10: 0 | HE10: 0000 | HF10: I | HG10: EQ | HH10: 0031 | HJ10: 0031 | HL10: 1 | HN10: 0 | HP10: Development and Regeneration | HU10: 0 | HX10: 0 | HZ10: 0 | IC10: 00
GX11: 6 | GY11: DKYHVOE8A2Y62APTY37363Y7T | HB11: 0001 | HC11: 0001 | HD11: 0 | HE11: 0000 | HF11: I | HG11: EQ | HH11: 0071 | HJ11: 0071 | HL11: 1 | HN11: 0 | HP11: Financial | HU11: 0 | HX11: 0 | HZ11: 0 | IC11: 00
GX12: 5 | GY12: DKYHVOE8A3EBFBKROFAYL39X5 | HB12: 0001 | HC12: 0001 | HD12: 0 | HE12: 0000 | HF12: I | HG12: EQ | HH12: 0081 | HJ12: 0081 | HL12: 1 | HN12: 0 | HP12: Land and Environmental | HU12: 0 | HX12: 0 | HZ12: 0 | IC12: 00
GX13: 4 | GY13: DKYHVPQUQZULPFJJFF5CQ0U0P | HB13: 0001 | HC13: 0001 | HD13: 0 | HE13: 0000 | HF13: I | HG13: EQ | HH13: 0091 | HJ13: 0091 | HL13: 1 | HN13: 0 | HP13: Social Work | HU13: 0 | HX13: 0 | HZ13: 0 | IC13: 00

Sheet BExRepositorySheet (hidden)
A1: 7

Sheet Summary
A1: WORKFORCE PROFILE BY SEXUAL ORIENTATION
A2: GLASGOW LIFE
A3: 31 September 2019
B5: The table below has been simplified to provide a summary of the Company's workforce by Sexual Orientation. The detailed information to support this is provided on Page 2
B17: Bisexual | E17: Heterosexual | H17: Lesbian/Gay | K17: Other | N17: Not disclosed | Q17: Total
B19: Number | C19: % | E19: Number | F19: % | H19: Number | I19: % | K19: Number | L19: % | N19: Number | O19: % | Q19: Number
A21: Grade 1-4 Total | B21: =Breakdown!B8 -> 12 | C21: =B21/Q21 -> 0.007272727273 | E21: =Breakdown!D8 -> 521 | F21: =E21/Q21 -> 0.3157575758 | H21: =Breakdown!F8 -> 22 | I21: =H21/Q21 -> 0.01333333333 | K21: =Breakdown!H8 -> 2 | L21: =K21/Q21 -> 0.001212121212 | N21: =Breakdown!J8 -> 1093 | O21: =N21/Q21 -> 0.6624242424 | Q21: =Breakdown!L8 -> 1650
A23: Grade 5-7 Total | B23: =Breakdown!B12 -> 3 | C23: =B23/Q23 -> 0.003811944091 | E23: =Breakdown!D12 -> 215 | F23: =E23/Q23 -> 0.2731893266 | H23: =Breakdown!F12 -> 8 | I23: =H23/Q23 -> 0.01016518424 | K23: =Breakdown!H12 -> 2 | L23: =K23/Q23 -> 0.002541296061 | N23: =Breakdown!J12 -> 559 | O23: =N23/Q23 -> 0.710292249 | Q23: =Breakdown!L12 -> 787
A25: Grade 8 Total | B25: =Breakdown!B16 -> 0 | C25: =B25/Q25 -> 0 | E25: =Breakdown!D16 -> 15 | F25: =E25/Q25 -> 0.2941176471 | H25: =Breakdown!F16 -> 1 | I25: =H25/Q25 -> 0.01960784314 | K25: =Breakdown!H16 -> 0 | L25: =K25/Q25 -> 0 | N25: =Breakdown!J16 -> 35 | O25: =N25/Q25 -> 0.6862745098 | Q25: =Breakdown!L16 -> 51
A27: Grade 9-15 Total | B27: =Breakdown!B24+Breakdown!B28 -> 0 | C27: =B27/Q27 -> 0 | E27: =Breakdown!D24+Breakdown!D28 -> 10 | F27: =E27/Q27 -> 0.3225806452 | H27: =Breakdown!F24+Breakdown!F28 -> 1 | I27: =H27/Q27 -> 0.03225806452 | K27: =Breakdown!H24+Breakdown!H28 -> 0 | L27: =K27/Q27 -> 0 | N27: =Breakdown!J24+Breakdown!J28 -> 20 | O27: =N27/Q27 -> 0.6451612903 | Q27: =Breakdown!L24+Breakdown!L28 -> 31
A29: Other Non Pay & Grading Structure | B29: =Breakdown!B32 -> 0 | C29: =B29/Q29 -> 0 | E29: =Breakdown!D32 -> 6 | F29: =E29/Q29 -> 0.1111111111 | H29: =Breakdown!F32 -> 0 | I29: =H29/Q29 -> 0 | K29: =Breakdown!H32 -> 0 | L29: =K29/Q29 -> 0 | N29: =Breakdown!J32 -> 48 | O29: =N29/Q29 -> 0.8888888889 | Q29: =Breakdown!L32 -> 54
A31: Total FT Workforce | B31: =Breakdown!B34 -> 4 | C31: =B31/Q31 -> 0.002399520096 | E31: =Breakdown!D34 -> 454 | F31: =E31/Q31 -> 0.2723455309 | H31: =Breakdown!F34 -> 18 | I31: =H31/Q31 -> 0.01079784043 | K31: =Breakdown!H34 -> 4 | L31: =K31/Q31 -> 0.002399520096 | N31: =Breakdown!J34 -> 1187 | O31: =N31/Q31 -> 0.7120575885 | Q31: =Breakdown!L34 -> 1667
A33: Total PT Workforce | B33: =Breakdown!B36 -> 11 | C33: =B33/Q33 -> 0.01214128035 | E33: =Breakdown!D36 -> 313 | F33: =E33/Q33 -> 0.3454746137 | H33: =Breakdown!F36 -> 14 | I33: =H33/Q33 -> 0.01545253863 | K33: =Breakdown!H36 -> 0 | L33: =K33/Q33 -> 0 | N33: =Breakdown!J36 -> 568 | O33: =N33/Q33 -> 0.6269315673 | Q33: =Breakdown!L36 -> 906
A35: Total Workforce | B35: =Breakdown!B38 -> 15 | C35: =B35/Q35 -> 0.005829770696 | E35: =Breakdown!D38 -> 767 | F35: =E35/Q35 -> 0.2980956082 | H35: =Breakdown!F38 -> 32 | I35: =H35/Q35 -> 0.01243684415 | K35: =Breakdown!H38 -> 4 | L35: =K35/Q35 -> 0.001554605519 | N35: =Breakdown!J38 -> 1755 | O35: =N35/Q35 -> 0.6820831714 | Q35: =Breakdown!L38 -> 2573

Sheet Breakdown
A1: Q1 APRIL TO JUNE 2011
A2: SEXUAL ORIENTATION
A4: GLASGOW LIFE | B4: Bi-Sexual | C4: % | D4: Heterosexual | E4: % | F4: Lesbian / Gay | G4: % | H4: Other | I4: % | J4: Not Disclosed | K4: % | L4: Totals
A6: Grade 1-4 F/T | B6: =Query!B23 -> 2 | C6: =IF(L6=0,0,SUM(B6/L6)) -> 0.002219755827 | D6: =Query!C23 -> 249 | E6: =IF(L6=0,0,SUM(D6/L6)) -> 0.2763596004 | F6: =Query!D23 -> 9 | G6: =IF(L6=0,0,SUM(F6/L6)) -> 0.009988901221 | H6: =Query!F23 -> 2 | I6: =IF(L6=0,0,SUM(H6/L6)) -> 0.002219755827 | J6: =Query!G23 -> 639 | K6: =IF(L6=0,0,SUM(J6/L6)) -> 0.7092119867 | L6: =SUM(B6,D6,F6,H6,J6) -> 901
A7: Grade 1-4 P/T | B7: =Query!B24 -> 10 | C7: =IF(L7=0,0,SUM(B7/L7)) -> 0.01335113485 | D7: =Query!C24 -> 272 | E7: =IF(L7=0,0,SUM(D7/L7)) -> 0.3631508678 | F7: =Query!D24 -> 13 | G7: =IF(L7=0,0,SUM(F7/L7)) -> 0.0173564753 | H7: =Query!F24 -> 0 | I7: =IF(L7=0,0,SUM(H7/L7)) -> 0 | J7: =Query!G24 -> 454 | K7: =IF(L7=0,0,SUM(J7/L7)) -> 0.606141522 | L7: =SUM(B7,D7,F7,H7,J7) -> 749
A8: Grade 1-4 Total | B8: =SUM(B6:B7) -> 12 | C8: =IF(L8=0,0,SUM(B8/L8)) -> 0.007272727273 | D8: =SUM(D6:D7) -> 521 | E8: =IF(L8=0,0,SUM(D8/L8)) -> 0.3157575758 | F8: =SUM(F6:F7) -> 22 | G8: =IF(L8=0,0,SUM(F8/L8)) -> 0.01333333333 | H8: =SUM(H6:H7) -> 2 | I8: =IF(L8=0,0,SUM(H8/L8)) -> 0.001212121212 | J8: =SUM(J6:J7) -> 1093 | K8: =IF(L8=0,0,SUM(J8/L8)) -> 0.6624242424 | L8: =SUM(L6:L7) -> 1650
A10: Grade 5-7 F/T | B10: =Query!B26 -> 2 | C10: =IF(L10=0,0,SUM(B10/L10)) -> 0.003048780488 | D10: =Query!C26 -> 174 | E10: =IF(L10=0,0,SUM(D10/L10)) -> 0.2652439024 | F10: =Query!D26 -> 8 | G10: =IF(L10=0,0,SUM(F10/L10)) -> 0.01219512195 | H10: =Query!F26 -> 2 | I10: =IF(L10=0,0,SUM(H10/L10)) -> 0.003048780488 | J10: =Query!G26 -> 470 | K10: =IF(L10=0,0,SUM(J10/L10)) -> 0.7164634146 | L10: =SUM(B10,D10,F10,H10,J10) -> 656
A11: Grade 5-7 P/T | B11: =Query!B27 -> 1 | C11: =IF(L11=0,0,SUM(B11/L11)) -> 0.007633587786 | D11: =Query!C27 -> 41 | E11: =IF(L11=0,0,SUM(D11/L11)) -> 0.3129770992 | F11: =Query!D27 -> 0 | G11: =IF(L11=0,0,SUM(F11/L11)) -> 0 | H11: =Query!F27 -> 0 | I11: =IF(L11=0,0,SUM(H11/L11)) -> 0 | J11: =Query!G27 -> 89 | K11: =IF(L11=0,0,SUM(J11/L11)) -> 0.679389313 | L11: =SUM(B11,D11,F11,H11,J11) -> 131
A12: Grade 5-7 Total | B12: =SUM(B10:B11) -> 3 | C12: =IF(L12=0,0,SUM(B12/L12)) -> 0.003811944091 | D12: =SUM(D10:D11) -> 215 | E12: =IF(L12=0,0,SUM(D12/L12)) -> 0.2731893266 | F12: =SUM(F10:F11) -> 8 | G12: =IF(L12=0,0,SUM(F12/L12)) -> 0.01016518424 | H12: =SUM(H10:H11) -> 2 | I12: =IF(L12=0,0,SUM(H12/L12)) -> 0.002541296061 | J12: =SUM(J10:J11) -> 559 | K12: =IF(L12=0,0,SUM(J12/L12)) -> 0.710292249 | L12: =SUM(L10:L11) -> 787
A14: Grade 8 F/T | B14: =Query!B29 -> 0 | C14: =IF(L14=0,0,SUM(B14/L14)) -> 0 | D14: =Query!C29 -> 15 | E14: =IF(L14=0,0,SUM(D14/L14)) -> 0.3125 | F14: =Query!D29 -> 0 | G14: =IF(L14=0,0,SUM(F14/L14)) -> 0 | H14: =Query!F29 -> 0 | I14: =IF(L14=0,0,SUM(H14/L14)) -> 0 | J14: =Query!G29 -> 33 | K14: =IF(L14=0,0,SUM(J14/L14)) -> 0.6875 | L14: =SUM(B14,D14,F14,H14,J14) -> 48
A15: Grade 8 P/T | B15: =Query!B30 -> 0 | C15: =IF(L15=0,0,SUM(B15/L15)) -> 0 | D15: =Query!C30 -> 0 | E15: =IF(L15=0,0,SUM(D15/L15)) -> 0 | F15: =Query!D30 -> 1 | G15: =IF(L15=0,0,SUM(F15/L15)) -> 0.3333333333 | H15: =Query!F30 -> 0 | I15: =IF(L15=0,0,SUM(H15/L15)) -> 0 | J15: =Query!G30 -> 2 | K15: =IF(L15=0,0,SUM(J15/L15)) -> 0.6666666667 | L15: =SUM(B15,D15,F15,H15,J15) -> 3
A16: Grade 8 Total | B16: =SUM(B14:B15) -> 0 | C16: =IF(L16=0,0,SUM(B16/L16)) -> 0 | D16: =SUM(D14:D15) -> 15 | E16: =IF(L16=0,0,SUM(D16/L16)) -> 0.2941176471 | F16: =SUM(F14:F15) -> 1 | G16: =IF(L16=0,0,SUM(F16/L16)) -> 0.01960784314 | H16: =SUM(H14:H15) -> 0 | I16: =IF(L16=0,0,SUM(H16/L16)) -> 0 | J16: =SUM(J14:J15) -> 35 | K16: =IF(L16=0,0,SUM(J16/L16)) -> 0.6862745098 | L16: =SUM(L14:L15) -> 51
A18: Grade ACZ 8 F/T | B18: =Query!B32 -> 0 | C18: =IF(L18=0,0,SUM(B18/L18)) -> 0 | D18: =Query!C32 -> 0 | E18: =IF(L18=0,0,SUM(D18/L18)) -> 0 | F18: =Query!D32 -> 0 | G18: =IF(L18=0,0,SUM(F18/L18)) -> 0 | H18: =Query!F32 -> 0 | I18: =IF(L18=0,0,SUM(H18/L18)) -> 0 | J18: =Query!G32 -> 0 | K18: =IF(L18=0,0,SUM(J18/L18)) -> 0 | L18: =SUM(B18,D18,F18,H18,J18) -> 0
A19: Grade ACZ 8 P/T | B19: =Query!B33 -> 0 | C19: =IF(L19=0,0,SUM(B19/L19)) -> 0 | D19: =Query!C33 -> 0 | E19: =IF(L19=0,0,SUM(D19/L19)) -> 0 | F19: =Query!D33 -> 0 | G19: =IF(L19=0,0,SUM(F19/L19)) -> 0 | H19: =Query!F33 -> 0 | I19: =IF(L19=0,0,SUM(H19/L19)) -> 0 | J19: =Query!G33 -> 0 | K19: =IF(L19=0,0,SUM(J19/L19)) -> 0 | L19: =SUM(B19,D19,F19,H19,J19) -> 0
A20: Grade ACZ 8 Total | B20: =SUM(B18:B19) -> 0 | C20: =IF(L20=0,0,SUM(B20/L20)) -> 0 | D20: =SUM(D18:D19) -> 0 | E20: =IF(L20=0,0,SUM(D20/L20)) -> 0 | F20: =SUM(F18:F19) -> 0 | G20: =IF(L20=0,0,SUM(F20/L20)) -> 0 | H20: =SUM(H18:H19) -> 0 | I20: =IF(L20=0,0,SUM(H20/L20)) -> 0 | J20: =SUM(J18:J19) -> 0 | K20: =IF(L20=0,0,SUM(J20/L20)) -> 0 | L20: =SUM(L18:L19) -> 0
A22: Grade 9-15 F/T | B22: =Query!B35 -> 0 | C22: =IF(L22=0,0,SUM(B22/L22)) -> 0 | D22: =Query!C35 -> 10 | E22: =IF(L22=0,0,SUM(D22/L22)) -> 0.3225806452 | F22: =Query!D35 -> 1 | G22: =IF(L22=0,0,SUM(F22/L22)) -> 0.03225806452 | H22: =Query!F35 -> 0 | I22: =IF(L22=0,0,SUM(H22/L22)) -> 0 | J22: =Query!G35 -> 20 | K22: =IF(L22=0,0,SUM(J22/L22)) -> 0.6451612903 | L22: =SUM(B22,D22,F22,H22,J22) -> 31
A23: Grade 9-15 P/T | B23: =Query!B36 -> 0 | C23: =IF(L23=0,0,SUM(B23/L23)) -> 0 | D23: =Query!C36 -> 0 | E23: =IF(L23=0,0,SUM(D23/L23)) -> 0 | F23: =Query!D36 -> 0 | G23: =IF(L23=0,0,SUM(F23/L23)) -> 0 | H23: =Query!F36 -> 0 | I23: =IF(L23=0,0,SUM(H23/L23)) -> 0 | J23: =Query!G36 -> 0 | K23: =IF(L23=0,0,SUM(J23/L23)) -> 0 | L23: =SUM(B23,D23,F23,H23,J23) -> 0
A24: Grade 9-15 Total | B24: =SUM(B22:B23) -> 0 | C24: =IF(L24=0,0,SUM(B24/L24)) -> 0 | D24: =SUM(D22:D23) -> 10 | E24: =IF(L24=0,0,SUM(D24/L24)) -> 0.3225806452 | F24: =SUM(F22:F23) -> 1 | G24: =IF(L24=0,0,SUM(F24/L24)) -> 0.03225806452 | H24: =SUM(H22:H23) -> 0 | I24: =IF(L24=0,0,SUM(H24/L24)) -> 0 | J24: =SUM(J22:J23) -> 20 | K24: =IF(L24=0,0,SUM(J24/L24)) -> 0.6451612903 | L24: =SUM(L22:L23) -> 31
A26: Grade ACZ 9-15 F/T | B26: =Query!B38 -> 0 | C26: =IF(L26=0,0,SUM(B26/L26)) -> 0 | D26: =Query!C38 -> 0 | E26: =IF(L26=0,0,SUM(D26/L26)) -> 0 | F26: =Query!D38 -> 0 | G26: =IF(L26=0,0,SUM(F26/L26)) -> 0 | H26: =Query!F38 -> 0 | I26: =IF(L26=0,0,SUM(H26/L26)) -> 0 | J26: =Query!G38 -> 0 | K26: =IF(L26=0,0,SUM(J26/L26)) -> 0 | L26: =SUM(B26,D26,F26,H26,J26) -> 0
A27: Grade ACZ 9-15 P/T | B27: =Query!B39 -> 0 | C27: =IF(L27=0,0,SUM(B27/L27)) -> 0 | D27: =Query!C39 -> 0 | E27: =IF(L27=0,0,SUM(D27/L27)) -> 0 | F27: =Query!D39 -> 0 | G27: =IF(L27=0,0,SUM(F27/L27)) -> 0 | H27: =Query!F39 -> 0 | I27: =IF(L27=0,0,SUM(H27/L27)) -> 0 | J27: =Query!G39 -> 0 | K27: =IF(L27=0,0,SUM(J27/L27)) -> 0 | L27: =SUM(B27,D27,F27,H27,J27) -> 0
A28: Grade ACZ 9-15 Total | B28: =SUM(B26:B27) -> 0 | C28: =IF(L28=0,0,SUM(B28/L28)) -> 0 | D28: =SUM(D26:D27) -> 0 | E28: =IF(L28=0,0,SUM(D28/L28)) -> 0 | F28: =SUM(F26:F27) -> 0 | G28: =IF(L28=0,0,SUM(F28/L28)) -> 0 | H28: =SUM(H26:H27) -> 0 | I28: =IF(L28=0,0,SUM(H28/L28)) -> 0 | J28: =SUM(J26:J27) -> 0 | K28: =IF(L28=0,0,SUM(J28/L28)) -> 0 | L28: =SUM(L26:L27) -> 0
A30: Other Non Pay & Grading Structure F/T | B30: =Query!B41 -> 0 | C30: =IF(L30=0,0,SUM(B30/L30)) -> 0 | D30: =Query!C41 -> 6 | E30: =IF(L30=0,0,SUM(D30/L30)) -> 0.1935483871 | F30: =Query!D41 -> 0 | G30: =IF(L30=0,0,SUM(F30/L30)) -> 0 | H30: =Query!F41 -> 0 | I30: =IF(L30=0,0,SUM(H30/L30)) -> 0 | J30: =Query!G41 -> 25 | K30: =IF(L30=0,0,SUM(J30/L30)) -> 0.8064516129 | L30: =SUM(B30,D30,F30,H30,J30) -> 31
A31: Other Non Pay & Grading Structure P/T | B31: =Query!B42 -> 0 | C31: =IF(L31=0,0,SUM(B31/L31)) -> 0 | D31: =Query!C42 -> 0 | E31: =IF(L31=0,0,SUM(D31/L31)) -> 0 | F31: =Query!D42 -> 0 | G31: =IF(L31=0,0,SUM(F31/L31)) -> 0 | H31: =Query!F42 -> 0 | I31: =IF(L31=0,0,SUM(H31/L31)) -> 0 | J31: =Query!G42 -> 23 | K31: =IF(L31=0,0,SUM(J31/L31)) -> 1 | L31: =SUM(B31,D31,F31,H31,J31) -> 23
A32: Other Non P&G Structure Total | B32: =SUM(B30:B31) -> 0 | C32: =IF(L32=0,0,SUM(B32/L32)) -> 0 | D32: =SUM(D30:D31) -> 6 | E32: =IF(L32=0,0,SUM(D32/L32)) -> 0.1111111111 | F32: =SUM(F30:F31) -> 0 | G32: =IF(L32=0,0,SUM(F32/L32)) -> 0 | H32: =SUM(H30:H31) -> 0 | I32: 0 | J32: =SUM(J30:J31) -> 48 | K32: 0.8888888889 | L32: =SUM(L30:L31) -> 54
A34: Total Workforce F/T | B34: =SUM(B6,B10,B14,B18,B22,B26,B30) -> 4 | C34: =IF(L34=0,0,SUM(B34/L34)) -> 0.002399520096 | D34: =SUM(D6,D10,D14,D18,D22,D26,D30) -> 454 | E34: =IF(L34=0,0,SUM(D34/L34)) -> 0.2723455309 | F34: 18 | G34: =IF(L34=0,0,SUM(F34/L34)) -> 0.01079784043 | H34: 4 | I34: 0.002399520096 | J34: 1187 | K34: 0.7120575885 | L34: =SUM(B34,D34,F34,H34,J34) -> 1667
A36: Total Workforce P/T | B36: =SUM(B7,B11,B15,B19,B23,B27,B31) -> 11 | C36: =IF(L36=0,0,SUM(B36/L36)) -> 0.01214128035 | D36: =SUM(D7,D11,D15,D19,D23,D27,D31) -> 313 | E36: =IF(L36=0,0,SUM(D36/L36)) -> 0.3454746137 | F36: 14 | G36: =IF(L36=0,0,SUM(F36/L36)) -> 0.01545253863 | H36: 0 | I36: 0 | J36: 568 | K36: 0.6269315673 | L36: =SUM(B36,D36,F36,H36,J36) -> 906
A38: Total Workforce | B38: =SUM(B34,B36) -> 15 | C38: =IF(L38=0,0,SUM(B38/L38)) -> 0.005829770696 | D38: =SUM(D34,D36) -> 767 | E38: =IF(L38=0,0,SUM(D38/L38)) -> 0.2980956082 | F38: 32 | G38: =IF(L38=0,0,SUM(F38/L38)) -> 0.01243684415 | H38: 4 | I38: 0.001554605519 | J38: 1755 | K38: 0.6820831714 | L38: =SUM(L34,L36) -> 2573
A40: Fields update automatically
A41: CBS Complete

Sheet Query (hidden)
A1: Workforce Profile Sexual Orientation (2011) Revised
A3: Payroll Area
A4: ZPersonal Area | B4: 0161
A5: Organizational Unit
A6: Personnel Subarea | B6: ]GL Bank[
A7: Checkbox for Part-Ti
A8: ZPrimary Employee ID
A9: Sexual Orientation - Rev 2011
A10: WP Bandings
A12: Employee Subgroup | B12: ]Foreign Lang Asst[, ]Teachers 35.00 M1[, ]Teachers 35.00 M2[, ]Skillseekers[, ]External Non Payroll[, ]Traineeship Program[...
A13: Employment Status | B13: Active
A14: Organizational Unit | B14: CSG, ]CE00112561[, ]DR00000029[, ]DR00000035[, ]EP10000000[, ]LS00000500[, ]GL00000001[, ]DR00000145[, ]L000000A00[
A15: Personnel Subarea | B15: ]ZZZZ[
A16: Employment End | B16: >= 30/09/2019
A17: Employment Start | B17: <= 30/09/2019
A18: ZPersonal Area | B18: ]9980..9991[, ]0021[, 0161
A20: Contract Type
B22: Bi-Sexual | C22: Heterosexual | D22: Lesbian/Gay | E22: Transgender | F22: Other | G22: Not Disclosed
A23: Grade 1 - 4 F/T | B23: 2 | C23: 249 | D23: 9 | F23: 2 | G23: 639 | H23: =SUM(B23:G23) -> 901
A24: Grade 1 - 4 P/T | B24: 10 | C24: 272 | D24: 13 | G24: 454 | H24: 749
A25: Grade 1 - 4 Total | B25: 12 | C25: 521 | D25: 22 | F25: 2 | G25: 1093
A26: Grade 5 - 7 F/T | B26: 2 | C26: 174 | D26: 8 | F26: 2 | G26: 470 | H26: 656
A27: Grade 5 - 7 P/T | B27: 1 | C27: 41 | G27: 89 | H27: 131
A28: Grade 5 - 7 Total | B28: 3 | C28: 215 | D28: 8 | F28: 2 | G28: 559
A29: Grade 8 F/T | C29: 15 | G29: 33 | H29: 48
A30: Grade 8 P/T | D30: 1 | G30: 2 | H30: 3
A31: Grade 8 Total | C31: 15 | D31: 1 | G31: 35
A32: ACZ Grade 8 F/T | H32: 0
A33: ACZ Grade 8 P/T | H33: 0
A34: ACZ Grade 8 Total
A35: Grade 9 - 15 F/T | C35: 10 | D35: 1 | G35: 20 | H35: 31
A36: Grade 9 - 15 P/T | H36: 0
A37: Grade 9 - 15 Total | C37: 10 | D37: 1 | G37: 20
A38: ACZ Grade 9 - 15 F/T | H38: 0
A39: ACZ Grade 9 - 15 P/T | H39: 0
A40: ACZ Grade 9 - 15 Total
A41: Other (Not Migrated) F/T | B41: 0 | C41: 6 | D41: 0 | F41: 0 | G41: 25 | H41: 31
A42: Other (Not Migrated) P/T | B42: 0 | C42: 0 | D42: 0 | G42: 23 | H42: 23
A43: Other (Not Migrated) Total | B43: 0 | C43: 6 | D43: 0 | F43: 0 | G43: 48
A44: Total Teaching Staff F/T
A45: Total Teaching Staff P/T
A46: Total Teaching Staff
A47: Total Non-Teaching Staff F/T | B47: 4 | C47: 454 | D47: 18 | F47: 4 | G47: 1187
A48: Total Non-Teaching Staff P/T | B48: 11 | C48: 313 | D48: 14 | G48: 568
A49: Total Non-Teaching Staff | B49: 15 | C49: 767 | D49: 32 | F49: 4 | G49: 1755
A50: Total - All WPBR Grades F/T | B50: 4 | C50: 448 | D50: 18 | F50: 4 | G50: 1162
A51: Total - All WPBR Grades P/T | B51: 11 | C51: 313 | D51: 14 | G51: 545
A52: Total Workforce - All WPBR Grades | B52: 15 | C52: 761 | D52: 32 | F52: 4 | G52: 1707
A53: Total Workforce (All) F/T | B53: 4 | C53: 454 | D53: 18 | F53: 4 | G53: 1187
A54: Total Workforce (All) P/T | B54: 11 | C54: 313 | D54: 14 | G54: 568
A55: Total Workforce (All) | B55: 15 | C55: 767 | D55: 32 | F55: 4 | G55: 1755
H56: =SUM(H23:H42) -> 2573 | I56: TOTAL
